Cogmind - Beta 16.1 @@@ ROGUE MODE // 2026.02.01 @ 03:25:39 Player: H3-MLN Result: Heading to fleet! Performance ------------- Evolutions (9) 4500 Regions Visited (32) 6400 Robots Destroyed (314) 1570 Value Destroyed (12029) 12029 Prototype IDs (111) 2220 Alien Tech Used (7) 1400 Bonus (31865) 31865 TOTAL SCORE: 59984 Bonus ------- Triggered High Security 500 Triggered Max Security 2000 High Alert Combat Kills 2201 Follower Combat Kills 4661 Hunted by Unchained 1000 Entered Garrisons 600 Used RIF Installer 1500 Network Hubs Disabled 600 Met Data Miner 300 Built Enhanced Grunts 300 A7 Reached Mainframe 300 Met R17 at Cetus 500 Found Hidden Lab 3000 Used Core Reset Matrix 3000 Met R17 at Research 2000 Scanned by Researcher 500 Pursued by Intercept 1000 Met Sigix 2000 Activated Exoskeleton 3000 Win 3000 Friendly Fire -97 Cogmind --------- Core Integrity 315/1600 Matter 300/300 Energy 45/100 System Corruption 8% Temperature Cool (0) Movement Core (50) Location To Fleet Rendezvous Parts ------- > --- POWER (2) -------- (None) > --- PROPULSION (10) -- (None) > --- UTILITY (12) ----- Advanced Signal Interpreter Advanced Targeting Computer Graphene Brace Trap Reconfigurator > --- WEAPON (2) ------- (None) > --- INVENTORY (5) ---- Improved Energy Well (396) Improved Cloaking Device Peak State ------------ > --- POWER ------------ Micro Antimatter Reactor Light Quantum Reactor > --- PROPULSION ------- Nuclear Pulse Array Impulse Thruster Array Impulse Thruster Array Impulse Thruster Array > --- UTILITY ---------- Experimental Cooling System Medium Storage Unit Gravity Neutralizer Experimental Optical Array Long-range Sensor Array Advanced Signal Interpreter Advanced Terrain Scanner Experimental Targeting Computer Experimental Core Analyzer Graphene Brace Deep Network Scanner Blink Core > --- WEAPON ----------- Enhanced Nova Cannon Helical Railgun > --- INVENTORY -------- Micro Antimatter Reactor Improved Energy Well Advanced Weapon Cycler Trap Reconfigurator Integrity Redistributor Helical Railgun Micro-nuke Launcher Sigix Terminator Plasma Sword [Rating: 190] Favorites ----------- Power Reinforced Fission Core Engine Cooled Ion Engine Power Core Reinforced Fission Core Reactor Micro Antimatter Reactor Propulsion Light Treads Treads Light Treads Leg Flexi-carbon Leg Wheel Wheel Hover Unit Combat Linear Gravjet Flight Unit Impulse Thruster Array Utility Blink Core Device Blink Core Storage Huge Storage Unit Processor Enhanced Optical Array Hackware Hacking Suite Protection Hardened Light Armor Plating Weapon Autogun Energy Gun Improved Medium Laser Energy Cannon Warp Cannon Ballistic Gun Autogun Ballistic Cannon Compact Linear Accelerator Launcher Grenade Launcher Special Weapon Remote Datajack Impact Weapon Makeshift Hammer Slashing Weapon Longsword +1 Special Melee Weapon Datajack Build | -11 -10 -10 -9 -9 -9 -8 -8 -8 -8 -8 -7 -7 -7 -7 -6 -6 -5 -5 -5 -5 -5 -4 -4 -4 -3 -3 -3 -2 -2 -2 -1 -1 ------- Run | Yrd Mat Min Mat Min Exi Min Mat Gar Mat Gar Fac Low Low Dat Pro Fac Fac Ext Cet Arc Hub Fac Arm Lab Res Gar Res Res Qua Sec Acc Com Slots Evolved 18 | . . . 2 . . . 2 . . . 2 . . . . 2 2 . . . . 2 . . 2 . . 2 . . 2 . Power 1 | . . . . . . . . . . . 1 . . . . . . . . . . . . . . . . . . . . . Propulsion 7 | . . . 1 . . . 1 . . . . . . . . . . . . . . 1 . . 1 . . 1 . . 2 . Utility 10 | . . . 1 . . . 1 . . . 1 . . . . 2 2 . . . . 1 . . 1 . . 1 . . . . Weapon . | . . . . . . . . . . . . . . . . . . . . . . . . . . . . . . . . . Parts Attached 339 | 7 4 5 30 1 14 2 18 7 14 13 22 1 2 . . 5 5 2 4 3 5 5 30 3 50 1 8 11 11 15 6 35 Power 37 | 1 1 . 2 . 2 . . . . . 6 . 1 . . . . 1 . . 1 . 6 . 5 . 1 3 1 2 . 4 Engine 16 | 1 1 . 2 . 1 . . . . . 4 . . . . . . 1 . . 1 . . . . . . 2 . . . 3 Core 6 | . . . . . 1 . . . . . 2 . 1 . . . . . . . . . 2 . . . . . . . . . Reactor 15 | . . . . . . . . . . . . . . . . . . . . . . . 4 . 5 . 1 1 1 2 . 1 Propulsion 112 | 2 . 1 13 . 4 . 12 6 8 4 6 . . . . . 3 . 1 . 1 3 9 . 17 . 1 1 2 2 5 11 Treads 37 | 1 . . 10 . 3 . 7 6 4 2 . . . . . . . . . . . . . . 1 . . . . . . 3 Leg 8 | . . . . . 1 . . . . 1 . . . . . . . . . . . . 2 . 4 . . . . . . . Wheel 13 | 1 . 1 1 . . . 5 . 4 1 . . . . . . . . . . . . . . . . . . . . . . Hover 10 | . . . . . . . . . . . . . . . . . . . . . . . 4 . 5 . . . 1 . . . Flight 44 | . . . 2 . . . . . . . 6 . . . . . 3 . 1 . 1 3 3 . 7 . 1 1 1 2 5 8 Utility 127 | 2 2 1 7 . 5 1 4 1 3 6 10 1 . . . 5 2 1 2 2 2 2 9 1 20 1 4 7 6 5 . 15 Device 51 | 1 . . 1 . 1 . 1 . 3 3 3 1 . . . 1 . . . . . . 5 . 13 1 1 5 3 1 . 7 Storage 12 | 1 2 1 . . 1 . . . . . . . . . . 1 . . . . 1 . 2 . 1 . . . 2 . . . Processor 16 | . . . 1 . . . 1 . . . 2 . . . . 2 . . . . . 1 . . 1 . 1 1 1 3 . 2 Hackware 27 | . . . 2 . . . 2 . . 2 4 . . . . 1 2 1 1 2 1 . 1 1 2 . 1 1 . . . 3 Protection 21 | . . . 3 . 3 1 . 1 . 1 1 . . . . . . . 1 . . 1 1 . 3 . 1 . . 1 . 3 Artifact . | . . . . . . . . . . . . . . . . . . . . . . . . . . . . . . . . . Weapon 63 | 2 1 3 8 1 3 1 2 . 3 3 . . 1 . . . . . 1 1 1 . 6 2 8 . 2 . 2 6 1 5 Energy Gun 7 | 1 1 1 . . . . . . 1 . . . . . . . . . 1 . . . . 1 1 . . . . . . . Energy Cannon 9 | . . . . . 1 . . . . . . . . . . . . . . . . . 4 . 3 . . . . 1 . . Ballistic Gun 22 | 1 . 2 4 1 1 1 2 . 1 1 . . . . . . . . . . . . . . . . 1 . 2 2 . 3 Ballistic Cannon 3 | . . . . . . . . . 1 . . . . . . . . . . . . . . . 1 . . . . . . 1 Launcher 8 | . . . 2 . . . . . . . . . . . . . . . . . 1 . 1 . . . . . . 2 1 1 Special Weapon 3 | . . . . . . . . . . 1 . . . . . . . . . . . . . 1 . . . . . 1 . . Impact Weapon 4 | . . . 1 . . . . . . . . . 1 . . . . . . . . . . . 1 . 1 . . . . . Slashing Weapon 4 | . . . . . 1 . . . . . . . . . . . . . . . . . 1 . 2 . . . . . . . Piercing Weapon . | . . . . . . . . . . . . . . . . . . . . . . . . . . . . . . . . . Special Melee Weapon 3 | . . . 1 . . . . . . 1 . . . . . . . . . 1 . . . . . . . . . . . . Unidentified Prototypes 38 | . 2 . 4 . . . . . . . 1 . 1 . . . 1 . 2 . 2 . . 3 7 . 1 1 7 5 . 1 Parts Lost 111 | . . . 1 . 5 . 2 1 2 5 3 . . . . . . 1 . . 6 8 14 . 9 . 6 . . 16 6 26 Power 10 | . . . . . . . . . . . . . . . . . . . . . 2 . 2 . 1 . 1 . . 1 . 3 Propulsion 45 | . . . . . 4 . . . 1 2 . . . . . . . . . . 3 6 3 . 4 . 4 . . 6 4 8 Utility 39 | . . . 1 . 1 . 1 1 1 2 3 . . . . . . . . . 1 1 7 . 3 . 1 . . 5 2 9 Weapon 17 | . . . . . . . 1 . . 1 . . . . . . . 1 . . . 1 2 . 1 . . . . 4 . 6 Highest Loss Streak 23 | . . . 1 . 3 . 1 1 1 5 1 . . . . . . 1 . . 5 3 7 . 3 . 3 . . 5 6 23 To Critical Strikes 2 | . . . . . 2 . . . . . . . . . . . . . . . . . . . . . . . . . . . Average Backups 18 | 4 14 19 23 24 20 24 23 23 23 23 15 13 14 13 14 14 13 13 14 15 14 8 8 2 6 8 8 4 6 6 4 4 Power . | . 1 1 1 1 . . . . . . . 2 2 3 3 1 . . . . . . . . . 1 . . . . . . Propulsion 4 | 1 4 4 4 7 5 6 6 6 5 5 2 2 1 1 1 1 3 4 4 4 3 . . . . 1 . . . . . . Utility 7 | 1 3 7 11 9 7 11 10 12 12 12 7 5 5 5 5 6 5 5 7 7 7 4 4 . 2 4 4 2 2 2 3 2 Weapon 4 | . 3 4 6 6 6 6 5 4 4 4 3 3 3 4 4 4 3 2 2 3 3 3 3 1 1 1 1 2 3 2 1 1 Tool/Special . | . . . . . . . . . . . . . . . . . . . . . . . . . . . . . . . . . Unused Backups 43 | . 1 4 5 . 1 . 1 1 1 1 3 . . . . 1 1 . 1 1 . 1 5 . 2 3 4 2 . 4 . . Power 6 | . 1 1 . . . . . . . . . . . . . . . . . . . 1 . . . . 1 1 . 1 . . Propulsion 6 | . . 1 1 . . . . . . . 1 . . . . . 1 . . . . . 1 . 1 . . . . . . . Utility 20 | . . . 3 . 1 . . 1 1 1 2 . . . . 1 . . 1 1 . . 1 . 1 3 3 . . . . . Weapon 9 | . . 2 1 . . . 1 . . . . . . . . . . . . . . . 3 . . . . 1 . 1 . . Tool/Special 2 | . . . . . . . . . . . . . . . . . . . . . . . . . . . . . . 2 . . Average Slot Usage (%) 77 | . 100 100 98 100 44 100 98 99 98 92 80 88 86 93 92 91 93 92 88 90 93 61 75 29 68 86 82 68 78 75 22 54 Engine 3 | . 14 14 10 11 1 . . . . . 8 7 5 . . . . 2 5 5 4 . . . . . . 6 . . . 2 Core 3 | . . . . . 2 11 9 9 8 9 1 7 8 14 14 12 11 7 5 5 5 3 3 . . . . . . . . . Treads 12 | . 14 14 21 22 7 33 22 36 21 19 1 . . . . . . . . . . . . . . . . . . . . . Wheel 4 | . 14 14 10 11 1 . 12 . 14 8 . . . . . . . . . . . . . . . . . . . . . . Flight 4 | . . . . . . . . . . . 26 30 31 35 35 31 23 22 22 22 25 15 3 . 10 18 15 8 12 14 3 14 Device 10 | . 14 14 1 . 10 11 10 9 16 14 15 22 22 21 21 18 18 19 15 16 13 11 16 5 21 31 22 27 31 26 3 7 Storage 8 | . 14 14 11 11 9 11 9 9 9 9 7 7 7 7 7 6 5 5 5 5 5 2 3 . 2 4 3 . 2 3 . . Processor 2 | . . . 2 . . . . . . . 1 7 7 7 7 13 11 11 11 11 11 12 11 5 6 9 12 11 8 11 12 12 Hackware 5 | . . . 6 11 . . 6 9 9 8 9 . . . . 2 13 12 16 16 18 15 10 6 4 . 3 . 2 2 1 6 Protection 5 | . . . 11 11 4 11 7 8 . 3 . . . . . . . . . . . . 3 . 1 4 4 4 3 1 . 1 Energy Gun 1 | . 14 24 2 . . . . . 3 7 . . . . . . . . . . 1 . . . . . . . . . . . Ballistic Gun 8 | . 14 3 17 21 3 18 17 14 14 7 . . . . . . . . 1 . . . . . . . 1 . . . . 1 Slashing Weapon 1 | . . . . . 2 . . 3 . 2 3 . . 1 7 6 5 4 3 5 4 . 2 . 2 4 3 4 2 2 . 1 Peak Build Rating 190 | 8 15 18 27 23 54 50 52 54 55 65 74 72 82 77 77 90 110 110 106 111 116 94 141 87 164 162 161 149 183 190 56 176 Average Rating 50 | 6 11 16 22 22 25 41 46 51 50 57 56 64 67 74 77 85 102 105 97 104 106 76 114 51 121 155 150 123 160 168 49 108 On Entrance 72 | 1 8 15 18 23 23 41 42 50 52 51 64 61 65 73 72 77 86 110 103 100 111 86 62 62 87 161 155 105 149 183 62 49 Avg Prop Armor Cover (%) 11 | 14 13 13 15 15 12 . 14 . 16 14 17 . 2 . . . . . . . . . 6 11 6 . . 3 2 14 14 2 Naked Turns . | . . . . . . . . . . . . . . . . . . . . . . . . . . . . . . . . . Heaviest Build 125 | 14 89 95 102 99 123 122 122 120 121 124 125 43 43 45 43 43 47 48 47 45 50 36 98 56 89 63 68 49 66 66 1 51 Greatest Support 110 | 10 10 16 23 10 60 60 83 83 83 60 38 38 43 43 43 43 49 55 49 49 52 30 106 30 110 67 71 63 81 76 27 64 Greatest Overweight (x) 33 | 1 8 5 26 9 33 2 7 1 7 6 5 1 1 1 . . . 1 . . 1 5 1 3 2 . 1 1 1 4 . . Average Overweight (x) 2 | . 4 4 6 9 10 1 3 1 4 3 . . . . . . . . . . . . . . . . . . . . . . Largest Inventory Capacity 25 | 8 25 25 25 25 25 25 25 25 25 25 25 15 15 15 15 15 15 15 15 15 15 15 20 20 20 10 10 5 10 10 5 5 Average Capacity 20 | 7 19 20 25 25 22 25 25 25 25 25 16 15 15 15 15 15 15 15 15 15 15 9 11 6 8 10 9 5 7 9 5 5 Most Carried 25 | 7 20 21 25 24 25 25 25 25 25 25 25 14 15 14 14 15 15 15 15 15 15 15 19 8 10 10 10 5 10 10 5 5 Average Carried 19 | 4 14 19 24 24 20 25 24 24 24 24 15 13 13 13 14 14 13 13 14 14 14 8 8 2 6 9 9 4 7 8 4 4 Final Capacity 25 | 8 20 25 25 25 25 25 25 25 25 25 15 15 15 15 15 15 15 15 15 15 15 5 5 20 10 10 5 5 10 5 5 5 Final Carried 25 | 6 20 21 24 24 25 25 24 25 25 24 14 14 14 14 14 15 13 14 15 15 13 5 5 8 10 10 5 5 9 5 5 2 Class Distribution -------------------- 42% | Scavenger-Mutant 37% | Mutant 4% | Scavenger-Scout Dominant Class ---------------- Mutant | -10/Materials Mutant | -10/Mines Mutant | -9/Materials Scavenger-Mutant | -9/Mines Mutant | -9/Exiles Scavenger-Mutant | -8/Mines Scavenger-Mutant | -8/Materials Scavenger-Mutant | -8/Garrison Scavenger-Mutant | -8/Materials Scavenger-Mutant | -8/Garrison Scavenger-Mutant | -7/Factory Sprinter | -7/Lower Caves Sprinter | -7/Lower Caves Sprinter | -7/Data Miner Sprinter | -6/Proximity Caves Scout | -6/Factory Hacker-Ninja | -5/Factory Hacker-Ninja | -5/Extension Hacker-Sprinter | -5/Cetus Hacker-Sprinter | -5/Archives Hacker-Scout | -5/Hub_04(d) Hacker-Mutant | -4/Factory Hacker-Mutant | -4/Armory Mutant | -4/Lab Scavenger-Scout | -3/Research Commander-Ninja | -3/Garrison Scavenger-Scout | -3/Research Scavenger-Scout | -2/Research Scavenger-Scout | -2/Quarantine Hacker-Scout | -2/Section 7 Alien-Mutant | -1/Access Hacker-Sprinter | -1/Command Resources | -11 -10 -10 -9 -9 -9 -8 -8 -8 -8 -8 -7 -7 -7 -7 -6 -6 -5 -5 -5 -5 -5 -4 -4 -4 -3 -3 -3 -2 -2 -2 -1 -1 ----------- Run | Yrd Mat Min Mat Min Exi Min Mat Gar Mat Gar Fac Low Low Dat Pro Fac Fac Ext Cet Arc Hub Fac Arm Lab Res Gar Res Res Qua Sec Acc Com Matter Collected 9399 | 279 74 232 1193 171 632 248 767 540 945 302 628 153 94 . 65 65 . 234 238 45 154 . 575 . 579 10 122 56 62 308 77 551 Remotely . | . . . . . . . . . . . . . . . . . . . . . . . . . . . . . . . . . Salvage Created 13524 | 87 144 148 1797 258 593 374 987 453 1477 557 589 168 30 . 290 155 . 448 225 217 317 . 530 . 801 13 351 307 369 1130 97 612 Parts 808 | 6 11 4 121 19 75 19 73 28 75 32 32 2 1 . 6 7 . 21 11 25 15 . 39 . 23 . 26 22 11 58 10 36 Haulers Intercepted 21 | . 1 . 5 . . . 4 . 5 . . . . . . 1 . . . . 1 . . . 3 . . . 1 . . . Recyclers Shooed 4 | . 1 . . . . . 1 . 1 . 1 . . . . . . . . . . . . . . . . . . . . . Parts Field Recycled . | . . . . . . . . . . . . . . . . . . . . . . . . . . . . . . . . . Retrieved Matter . | . . . . . . . . . . . . . . . . . . . . . . . . . . . . . . . . . Parts Self-Destructed 2 | . . . . . . . . . . . . . 2 . . . . . . . . . . . . . . . . . . . Prevented . | . . . . . . . . . . . . . . . . . . . . . . . . . . . . . . . . . Parts Restored . | . . . . . . . . . . . . . . . . . . . . . . . . . . . . . . . . . Kills | -11 -10 -10 -9 -9 -9 -8 -8 -8 -8 -8 -7 -7 -7 -7 -6 -6 -5 -5 -5 -5 -5 -4 -4 -4 -3 -3 -3 -2 -2 -2 -1 -1 ------- Run | Yrd Mat Min Mat Min Exi Min Mat Gar Mat Gar Fac Low Low Dat Pro Fac Fac Ext Cet Arc Hub Fac Arm Lab Res Gar Res Res Qua Sec Acc Com Combat Hostiles Destroyed 199 | . 2 2 35 7 8 10 22 9 21 12 5 . 1 . . . . 5 3 . 2 . 14 . 5 . 3 . 3 19 5 6 Melee 16 | . . . 1 . 1 . . . . . 2 . . . . . . 1 . . 1 . 6 . . . 3 . . . . 1 Guns 93 | . 2 2 22 3 1 4 12 9 18 7 . . 1 . . . . . 3 . 1 . 1 . 1 . . . . 1 . 5 Cannons 12 | . . . . . . . . . . . . . . . . . . . . . . . 3 . 4 . . . 1 4 . . AOE 75 | . . . 12 4 6 6 10 . 3 5 3 . . . . . . 4 . . . . 4 . . . . . . 13 5 . Classes Destroyed 26 | 2 2 . 6 . 3 2 . 1 1 1 . . . . . . . . . . . . . . . . . . 2 4 . 2 Worker 20 | . . . 1 1 . . . . 2 . 7 . . . . . . 1 . . . . . . 2 . 3 1 . . . 2 Builder 8 | . . . 1 . . . . . 1 . . . . . . . . . . . . . . . 2 . . 2 1 1 . . Tunneler 3 | 1 . . . . . . . . . . 1 . . . . . . . . . . . . . 1 . . . . . . . Hauler 21 | . 1 . 5 . . . 4 . 5 . . . . . . 1 . . . . 1 . . . 3 . . . 1 . . . Recycler 19 | 1 . 1 3 1 . 1 1 . 3 . 3 . . . . . . 2 . . . . . . . . . 2 . 1 . . Operator 21 | . . . 2 . . . 1 . . . 2 . . . . 2 . 1 . 6 2 . . . 2 . 1 . 1 . . 1 Drone 1 | . . . . . . . . . . . . . . . . . . . . . . . . . . . . . 1 . . . Turret 1 | . . . . . 1 . . . . . . . . . . . . . . . . . . . . . . . . . . . Watcher 18 | . . . 4 . . . 1 . 3 . 1 . . . . . . 1 . . 1 . 1 . . . 2 . 1 3 . . Swarmer 61 | . . . 12 4 . 4 9 . 5 4 3 . . . . . . 4 . . . . 8 . . . . . . 3 5 . Cutter 1 | . . . . . . . . . . 1 . . . . . . . . . . . . . . . . . . . . . . Saboteur 1 | . . . . . . . . . . . . . . . . . . . . . . . . . . . . . . . . 1 Grunt 60 | . 2 2 14 3 . 4 6 3 9 3 1 . . . . . . . . . 1 . 1 . 4 . . . 1 4 . 2 Brawler 3 | . . . . . . 1 . . . . . . . . . . . . . . . . . . . . . . . 2 . . Duelist 2 | . . . . . . 1 1 . . . . . . . . . . . . . . . . . . . . . . . . . Protector 2 | . . . . . . . . . . . . . . . . . . . . . . . . . . . . . . 2 . . Researcher 1 | . . . . . . . . . . . . . . . . . . . . . . . . . . . . . . 1 . . Sentry 34 | . . . 9 . . . 6 5 6 2 . . . . . . . 1 . . 1 . 1 . 1 . . . . 1 . 1 Hunter 1 | . . . . . . . . . 1 . . . . . . . . . . . . . . . . . . . . . . . Programmer 14 | . . . . . . . . 1 . 2 1 . . . . . . . . . . . 4 . . . 3 . . 3 . . Behemoth 1 | . . . . . . . . . . . . . . . . . . . . . . . . . . . . . . . . 1 Cetus Guard 3 | . . . . . . . . . . . . . . . . . . . 3 . . . . . . . . . . . . . Tracker 1 | . . . . . . . . . . . . . . . . . . . . . . . . . . . . . . 1 . . Investigator 1 | . . . . . . . . . . . . . . . . . . . . . . . . . . . . . . 1 . . Striker 1 | . . . . . . . . . . . . . . . . . . . . . . . . . . . . . . 1 . . Executioner 2 | . . . . . . . . . . . . . . . . . . . . . . . . . . . . . . 1 . 1 Alpha 7 2 | . . . . . . . . . . . . . . . . . . . . . . . . . . . . . 1 1 . . Zionite 8 | . . . . . 8 . . . . . . . . . . . . . . . . . . . . . . . . . . . Packrat 1 | . . . . . . . . . . . . 1 . . . . . . . . . . . . . . . . . . . . Assembled 7 | . . . . . 7 . . . . . . . . . . . . . . . . . . . . . . . . . . . Wasp 1 | . . . . . . . . . . . . . 1 . . . . . . . . . . . . . . . . . . . Best Kill Streak 10 | 1 2 2 4 8 6 4 4 2 6 6 4 . 1 . . 1 . 5 3 6 2 . 4 . 4 . 6 2 2 10 5 3 Combat Bots Only 9 | . 2 2 4 7 4 4 4 2 3 6 3 . 1 . . . . 4 3 . 1 . 4 . 4 . 2 . 1 9 5 2 Max Kills in Single Turn 6 | 1 1 1 4 4 2 3 3 1 2 4 2 1 1 . . 1 . 2 1 1 1 . 4 . 1 . 1 1 1 6 4 1 Gunslinging 1 | . . . 1 . . . . . . 1 . . . . . . . . . . . . . . . . . . . . . . Exploded 5 | . . . 4 3 2 3 3 . 1 4 2 . . . . . . 2 . . . . 4 . . . . . . 5 4 . Melee 1 | . . . 1 . 1 . . . . . 1 . . . . . . 1 . . 1 . 1 . . . 1 . . . . 1 Uniques/NPCs Destroyed 4 | . . . . . 4 . . . . . . . . . . . . . . . . . . . . . . . . . . . 8R-AWN (-9/Exiles) EX-DEC (-9/Exiles) EX-BIN (-9/Exiles) EX-HEX (-9/Exiles) Combat | -11 -10 -10 -9 -9 -9 -8 -8 -8 -8 -8 -7 -7 -7 -7 -6 -6 -5 -5 -5 -5 -5 -4 -4 -4 -3 -3 -3 -2 -2 -2 -1 -1 -------- Run | Yrd Mat Min Mat Min Exi Min Mat Gar Mat Gar Fac Low Low Dat Pro Fac Fac Ext Cet Arc Hub Fac Arm Lab Res Gar Res Res Qua Sec Acc Com Hostile Shots Fired 1882 | . 7 4 122 23 84 21 92 85 87 104 38 . 1 . . . . 27 2 . 45 56 302 . 160 . 141 12 29 151 56 233 Missed 694 | . . 1 41 9 26 7 30 24 28 28 18 . 1 . . . . 15 2 . 19 23 110 . 54 . 74 4 15 59 24 82 Hits 1188 | . 7 3 81 14 58 14 62 61 59 76 20 . . . . . . 12 . . 26 33 192 . 106 . 67 8 14 92 32 151 Melee 39 | . . . . . . 3 . . . . . . . . . . . . . . . . 27 . . . 4 . . . . 5 Projectile 1149 | . 7 3 81 14 58 11 62 61 59 76 20 . . . . . . 12 . . 26 33 165 . 106 . 63 8 14 92 32 146 AOE 5 | . . . . . . . . . . . . . . . . . . . . . . 3 . . 1 . . . . 1 . . Critical Strikes 86 | . . . 1 . 22 . 4 4 2 2 1 . . . . . . 1 . . 2 1 11 . 4 . 4 . 1 7 2 17 Actively Blocked 27 | . . . . . . . . . . . . . . . . . . . . . . . . . . . . . 1 7 2 17 Part Disruptions 3 | . . . . . . . . . . . . . . . . . . . . . . . . . 1 . . . . . 1 1 Damage Taken 23323 | . 89 45 1029 207 1101 229 821 918 639 1043 321 . . . . . . 212 . . 660 870 3783 . 2273 . 1555 200 368 2258 790 3912 Core 4175 | . 23 15 116 . 139 30 33 94 127 145 102 . . . . . . . . . 169 315 424 . 280 . 139 87 53 599 441 844 Absorbed by Shields 841 | . . . . . . . . . 172 226 . . . . . . . 20 . . . . . . . . . . . 361 . 62 Regen/Repaired (Parts) 1064 | . . . 269 . . . 299 . 144 . . . . . . 13 . . . . . . 210 . . . . 129 . . . . Core Remaining (%) 62 | 100 . 84 . . . 28 . . . 27 . . . . 85 100 . . . . 83 . . 35 . . 80 . . 49 . 19 Volleys Fired 775 | 9 16 5 99 17 45 25 60 48 92 32 15 . 4 5 . 1 . 7 23 1 19 1 31 9 54 . 10 3 34 46 3 61 Largest 2 | 2 2 2 2 2 2 2 2 2 2 2 1 . 1 1 . 1 . 1 1 1 1 1 1 1 2 . 1 1 1 2 1 2 Hottest 240 | 70 76 112 81 46 53 55 50 50 105 105 33 . 30 5 . 5 . 33 30 5 240 30 120 120 195 . 100 100 100 158 49 94 Shots Fired 1147 | 18 32 10 190 32 49 43 112 92 176 51 15 . 4 5 . 1 . 7 23 1 19 1 31 9 55 . 11 3 34 56 3 64 Gun 895 | 18 32 10 183 30 43 36 104 92 173 44 3 . 4 . . . . . 23 . 19 1 1 . 13 . 2 . . 11 . 53 Cannon 170 | . . . . . . . . . . . . . . . . . . . . . . . 29 9 42 . 9 3 34 37 . 7 Launcher 61 | . . . 7 2 6 7 8 . 3 6 3 . . . . . . 4 . . . . 1 . . . . . . 7 3 4 Special 21 | . . . . . . . . . . 1 9 . . 5 . 1 . 3 . 1 . . . . . . . . . 1 . . Kinetic 771 | 9 16 . 151 30 43 36 104 92 147 24 3 . 4 . . . . . 23 . 3 1 1 . 11 . 2 . . 11 . 60 Thermal 295 | 9 16 10 32 . . . . . 26 20 . . . . . . . . . . 16 . 29 9 44 . 9 3 34 38 . . Explosive 60 | . . . 7 2 6 7 8 . 3 6 3 . . . . . . 4 . . . . 1 . . . . . . 6 3 4 Electromagnetic . | . . . . . . . . . . . . . . . . . . . . . . . . . . . . . . . . . Robot Hit Streak 41 | 6 12 3 15 20 4 13 17 12 15 18 2 . . 1 . 2 . 3 5 1 1 . 3 . 7 . 4 5 7 9 . 41 Robot Miss Streak 8 | 2 5 2 3 1 8 3 4 3 5 3 4 . . 4 . . . 2 2 . 2 . 4 . 2 . . . . 5 . 3 Penetration Max 2 | . . . . . 1 . . . . . . . . . . . . . . . . . . . 1 . . . . 1 . 2 Secondary Targets 9 | . . . 2 . . 1 . 2 2 2 . . . . . . . . . . . . . . . . . . . . . . Max Gunslinging Chain 1 | . . . 1 . . 1 . 1 1 1 . . . . . . . . . . . . . . . . . . . . . . Shots Hit Robots 871 | 11 20 6 134 27 78 27 69 60 110 49 28 3 . 1 13 4 1 8 15 7 12 . 13 . 41 1 22 9 6 30 . 66 Core Hits 518 | 4 9 4 64 11 35 20 43 18 60 31 18 1 1 . 6 2 . 9 7 2 5 1 17 . 16 . 8 5 4 61 6 50 Critical Kills 15 | . . . 1 . 2 . . . . . 1 . . . . . . . 3 . 1 . 1 . 1 . 1 . 3 1 . . Critical Parts Destroyed 21 | . . . 2 . 6 . . . 1 1 . . 2 . . . . . 4 . . . . . 3 . 1 . . . . 1 Critical Strikes 53 | . . 2 7 . 12 . . . 1 1 1 . 2 . . . . . 8 . 1 . 1 . 4 . 7 . 3 1 . 2 Burn 6 | . . 2 4 . . . . . . . . . . . . . . . . . . . . . . . . . . . . . Meltdown 4 | . . . . . . . . . . . . . . . . . . . . . . . . . . . . . 3 1 . . Destroy 28 | . . . . . 8 . . . 1 1 1 . 2 . . . . . 8 . 1 . 1 . 4 . . . . . . 1 Blast 1 | . . . . . . . . . . . . . . . . . . . . . . . . . . . . . . . . 1 Smash 5 | . . . 3 . . . . . . . . . . . . . . . . . . . . . . . 2 . . . . . Sever 9 | . . . . . 4 . . . . . . . . . . . . . . . . . . . . . 5 . . . . . Melee Attacks 419 | . . . 9 1 57 . 1 38 1 22 36 3 5 . 13 9 7 8 . 6 21 . 25 . 45 10 53 17 14 10 . 8 Impact 58 | . . . 8 . . . . . . . . . 4 . . . 3 4 . . . . . . 26 . 13 . . . . . Slashing 354 | . . . . . 54 . 1 38 . 22 36 3 1 . 13 9 4 4 . 6 20 . 25 . 19 10 40 17 14 10 . 8 Piercing . | . . . . . . . . . . . . . . . . . . . . . . . . . . . . . . . . . Sneak Attacks 67 | . . . 4 1 7 . . . 1 . 14 1 . . . 2 . 4 . 6 5 . . . 9 . . 5 2 4 . 2 Combat Hostiles . | . . . . . . . . . . . . . . . . . . . . . . . . . . . . . . . . . Follow-up Attacks 5 | . . . . . . . . . . . . . . . . . . . . . . . . . 4 . 1 . . . . . Damage Inflicted 41157 | 134 224 101 2865 684 3652 772 1770 1097 2328 2254 1937 281 61 . 1269 284 55 946 253 673 793 133 1039 . 2309 108 1161 654 1241 8787 537 2755 Guns 11500 | 134 224 101 2079 389 393 421 1074 1097 2052 791 40 . 61 . . . . . 253 . 17 21 18 . 192 . . . . 158 . 1985 Cannons 3751 | . . . . . . . . . . . . . . . . . . . . . . . 245 . 1081 . 133 41 964 1037 . 250 Explosions 12129 | . . . 535 295 457 351 696 . 273 636 259 . . . . . . 461 . . . 112 302 . . . . . . 7129 537 86 Melee 13770 | . . . 251 . 2802 . . . . 824 1638 281 . . 1269 284 55 485 . 673 776 . 474 . 1036 108 1028 613 277 462 . 434 Ramming 7 | . . . . . . . . . 3 3 . . . . . . . . . . . . . . . . . . . 1 . . Kinetic 10117 | 59 107 . 1755 389 393 421 1074 1097 1521 328 40 . 61 . . . . . 253 . 17 21 18 . 170 . . . . 158 . 2235 Thermal 10000 | 75 117 101 324 . . . . . 531 463 . . . . . . . . . . . 112 245 . 1103 . 133 41 964 5791 . . Explosive 7263 | . . . 535 295 457 351 696 . 273 636 259 . . . . . . 461 . . . . 302 . . . . . . 2375 537 86 Electromagnetic . | . . . . . . . . . . . . . . . . . . . . . . . . . . . . . . . . . Impact 1264 | . . . 251 . . . . . . . . . . . . . . 131 . . . . . . 498 . 384 . . . . . Slashing 12506 | . . . . . 2802 . . . . 824 1638 281 . . 1269 284 55 354 . 673 776 . 474 . 538 108 644 613 277 462 . 434 Piercing . | . . . . . . . . . . . . . . . . . . . . . . . . . . . . . . . . . Highest Corruption 11 | . . . . . . . . 2 2 3 2 2 . . . . . . . . 2 2 6 6 2 . 11 . 3 3 1 8 Average Corruption 2 | . . . . . . . . 1 1 2 2 1 . . . . . . . . 1 1 2 6 1 . 4 . 2 2 1 1 Corruption Purged 6 | . . . . . . . . . 2 . . 2 . . . . . . . . . . . . 2 . . . . . . . Corruption Blocked . | . . . . . . . . . . . . . . . . . . . . . . . . . . . . . . . . . Effects 111 | . . . . . . . . 2 26 15 1 1 . . . . . . . . 1 2 17 9 14 . 14 . 1 2 . 6 Message Errors 26 | . . . . . . . . 1 6 6 . 1 . . . . . . . . . . 7 3 . . 1 . . . . 1 Matter Fused 30 | . . . . . . . . 1 4 3 . . . . . . . . . . 1 1 4 3 6 . 5 . . 1 . 1 Heat Flow Errors 16 | . . . . . . . . . 4 2 1 . . . . . . . . . . 1 2 2 1 . 1 . . . . 2 Energy Discharges 11 | . . . . . . . . . 5 2 . . . . . . . . . . . . 1 . 2 . 1 . . . . . Parts Rejected 2 | . . . . . . . . . 1 . . . . . . . . . . . . . . . 1 . . . . . . . Parts Fused 1 | . . . . . . . . . . . . . . . . . . . . . . . . . . . 1 . . . . . Data Loss (minor) 8 | . . . . . . . . . 3 . . . . . . . . . . . . . . 1 1 . . . 1 1 . 1 Data Loss (major) 6 | . . . . . . . . . . 1 . . . . . . . . . . . . 1 . 2 . 2 . . . . . Misfires 3 | . . . . . . . . . 1 1 . . . . . . . . . . . . . . . . 1 . . . . . Alerts 5 | . . . . . . . . . 1 . . . . . . . . . . . . . 2 . . . 1 . . . . 1 Misdirections 1 | . . . . . . . . . . . . . . . . . . . . . . . . . . . 1 . . . . . Weapon Failures 2 | . . . . . . . . . 1 . . . . . . . . . . . . . . . 1 . . . . . . . Overload Shots 1 | . . . . . . . . . . . . . . . . . . . . . 1 . . . . . . . . . . . Overflow Damage 3906 | . . . 92 23 183 . 21 . 25 58 384 130 . . 628 90 20 198 . 277 285 . . . 435 63 229 61 134 337 97 136 Projectiles 174 | . . . . . . . . . . . . . . . . . . . . . . . . . 33 . . . 68 73 . . Explosions 464 | . . . 25 23 28 . 21 . 25 20 . . . . . . . 3 . . . . . . . . . . . 206 97 16 Melee 3268 | . . . 67 . 155 . . . . 38 384 130 . . 628 90 20 195 . 277 285 . . . 402 63 229 61 66 58 . 120 Knockbacks 9 | . . . 1 . . . . . . . . . . . . . . 1 . . . . . . . . 2 . . . . 5 Impact 4 | . . . 1 . . . . . . . . . . . . . . 1 . . . . . . . . 2 . . . . . Kinetic 5 | . . . . . . . . . . . . . . . . . . . . . . . . . . . . . . . . 5 Secondary . | . . . . . . . . . . . . . . . . . . . . . . . . . . . . . . . . . Self-Inflicted Damage 444 | . . . . 21 . . 39 . 15 112 . . . . . . . . . . . . . . . . . . . 129 41 87 Shots 10 | . . . . 1 . . 1 . 1 3 . . . . . . . . . . . . . . . . . . . 2 1 1 Rammed 3 | . . . 1 . . . . . . 1 . . . . . . . . . . . . . . . . . . . 1 . . Targets Rammed 4 | . . . 1 . . . . . 1 1 . . . . . . . . . . . . . . . . . . . 1 . . Kicked . | . . . . . . . . . . . . . . . . . . . . . . . . . . . . . . . . . Crushed 1 | . . . . . . . . . 1 . . . . . . . . . . . . . . . . . . . . . . . Highest Temperature 465 | 90 107 171 240 34 312 8 25 30 293 292 254 . 9 10 27 . . 12 . . 360 107 288 216 465 . 207 70 88 40 . 362 Average Temperature 69 | 43 38 77 42 11 142 5 7 10 69 133 178 . 4 4 10 . . 8 . . 127 63 102 56 89 . 64 28 36 16 . 62 Received Heat Transfer 3536 | . 51 27 381 93 . 63 306 360 279 355 72 . . . . . . 18 . . 153 84 537 . 366 . 78 45 . 109 36 123 Effects 10 | . . . . . . . . . 2 2 . . . . . . . . . . . . 4 . 2 . . . . . . . Shutdowns 1 | . . . . . . . . . . . . . . . . . . . . . . . . . 1 . . . . . . . Energy Bleed 5 | . . . . . . . . . 1 2 . . . . . . . . . . . . 1 . 1 . . . . . . . Interference 4 | . . . . . . . . . 1 . . . . . . . . . . . . . 3 . . . . . . . . . Siege Activations . | . . . . . . . . . . . . . . . . . . . . . . . . . . . . . . . . . Martial Activations . | . . . . . . . . . . . . . . . . . . . . . . . . . . . . . . . . . Shielding Activations . | . . . . . . . . . . . . . . . . . . . . . . . . . . . . . . . . . Robots Disrupted . | . . . . . . . . . . . . . . . . . . . . . . . . . . . . . . . . . Combat Hostiles . | . . . . . . . . . . . . . . . . . . . . . . . . . . . . . . . . . Robots Corrupted 6 | . . . 2 . . . . . . . . . . . . . . 1 . . . . . . 1 . 2 . . . . . Combat Hostiles . | . . . . . . . . . . . . . . . . . . . . . . . . . . . . . . . . . Parts Fried 9 | . . . 2 . . . . . . . . . . . . . . 1 . . . . . . 4 . 2 . . . . . Impact Corruptions 19 | . . . 3 . . . . . . . . . . . . . . 3 . . . . . . 7 . 6 . . . . . Robots Melted 4 | . . . . . . . . . . . . . . . . . . . . . . . . . . . . . 3 1 . . Combat Hostiles 3 | . . . . . . . . . . . . . . . . . . . . . . . . . . . . . 2 1 . . Parts Melted 17 | . 1 2 3 . . . . . 2 2 . . . . . . . . . . . . . . 1 . . . 2 4 . . Heat Transferred 7840 | 222 296 370 999 . . . . . 1175 972 . . . . . . . . . . . 50 185 . 975 . 83 37 925 1551 . . Parts Sabotaged 1 | . . . . . . . . . . . . . . . . . . . . . . . 1 . . . . . . . . . Parts Stolen . | . . . . . . . . . . . . . . . . . . . . . . . . . . . . . . . . . Parts Stripped . | . . . . . . . . . . . . . . . . . . . . . . . . . . . . . . . . . Power Chain Reactions . | . . . . . . . . . . . . . . . . . . . . . . . . . . . . . . . . . Alert | -11 -10 -10 -9 -9 -9 -8 -8 -8 -8 -8 -7 -7 -7 -7 -6 -6 -5 -5 -5 -5 -5 -4 -4 -4 -3 -3 -3 -2 -2 -2 -1 -1 ------- Run | Yrd Mat Min Mat Min Exi Min Mat Gar Mat Gar Fac Low Low Dat Pro Fac Fac Ext Cet Arc Hub Fac Arm Lab Res Gar Res Res Qua Sec Acc Com Maximum Alert Level 5 | . . . 2 1 . . 1 2 1 2 1 . . . . . . 1 1 1 2 1 2 . . 1 2 . . 5 5 5 Low Security (%) 77 | 100 100 100 63 97 . 100 99 37 64 26 88 . . . . 100 100 85 69 31 71 31 61 . 100 21 61 100 100 47 . . Level 1 14 | . . . 30 2 . . . 41 35 19 11 . . . . . . 14 30 68 27 68 5 . . 78 34 . . . . . Level 2 4 | . . . 6 . . . . 20 . 53 . . . . . . . . . . 1 . 33 . . . 3 . . . . . Level 3 . | . . . . . . . . . . . . . . . . . . . . . . . . . . . . . . . . . Level 4 . | . . . . . . . . . . . . . . . . . . . . . . . . . . . . . . . . . Level 5 2 | . . . . . . . . . . . . . . . . . . . . . . . . . . . . . . . 7 93 High Security . | . . . . . . . . . . . . . . . . . . . . . . . . . . . . . . . . 6 Max Security 1 | . . . . . . . . . . . . . . . . . . . . . . . . . . . . . . 52 92 . Peak Influence 3922 | 5 50 65 409 248 . 110 201 535 386 502 263 . . . . 30 68 246 301 285 410 360 526 . 46 262 466 108 179 3922 2994 3268 Initial 2335 | . . 15 . 156 . . . 128 260 94 263 . . . . . . 29 123 112 92 191 70 . . . 147 7 56 108 2335 1916 Average 193 | . 4 7 157 15 . 14 51 274 142 318 125 . . . . 8 35 49 185 209 191 256 250 . 7 200 182 19 86 1460 2685 2472 Influence Increases 15435 | 10 57 70 1025 197 . 268 754 417 723 458 518 10 30 . . 128 120 383 348 253 568 272 1424 . 306 262 753 232 400 2660 719 2070 Destroy 0b10 Robot/C 5740 | . 40 40 700 140 . 200 440 180 420 240 180 . . . . . . 220 160 80 60 . 440 . 100 . 240 . 40 860 240 720 Destroy 0b10 Robot/NC 635 | 10 5 5 80 10 . 5 35 . 70 10 70 10 . . . 15 . 25 10 30 20 . 10 . 50 . 20 25 25 40 5 50 Destroy Leader 1120 | . 12 10 178 20 . 30 120 . 146 20 42 . . . . 2 . 32 . . 24 . 84 . 26 . 52 . 4 138 32 148 Allied During Kill 1187 | . . . . . . . . . . 1 8 . . . . . . 30 106 110 31 . 65 . . . 121 . . 238 67 410 Trap Triggered on 0b10 60 | . . . . . . . . . . . . . . . . . . . . . . 30 . . . . . . 10 . . 20 Successful Hack 682 | . . . 29 . . . 37 . 30 . 17 . . . . 17 9 . 7 . 10 106 81 . 21 30 144 12 27 27 . 78 Select Force Hacks 150 | . . . . . . . . . . . . . . . . . . . . . 100 . 50 . . . . . . . . . Disable Machine 855 | . . 15 . . . . . . 15 . 15 . . . . 30 . . . 15 30 60 105 . 15 . . . 60 420 30 45 Anti-Garrison Action 400 | . . . . . . . . 100 . 50 . . . . . . . . . . . . . . . 200 . . . . . 50 Destroy Structure 2216 | . . . 38 12 . 33 62 62 27 77 21 . . . . 4 6 46 50 18 38 46 74 . 64 32 56 30 39 757 150 474 Partial Spotted 465 | . . . . . . . . . . . 90 . . . . 45 90 . . . 30 15 15 . 15 . 30 30 30 15 15 45 Lose Combat Pursuer 1725 | . . . . 15 . . 60 75 15 60 75 . 30 . . 15 15 30 15 . 225 15 300 . 15 . 90 135 165 165 180 30 Miscellaneous 200 | . . . . . . . . . . . . . . . . . . . . . . . 200 . . . . . . . . . Influence Decreases 13727 | 10 17 110 622 600 . 268 556 80 1112 102 891 98 71 . . 128 60 223 287 269 443 519 1119 448 306 . 1001 146 306 386 1617 1932 Entered New Map 5042 | . . 25 . 247 . . . 70 275 52 239 48 9 . . . . 31 97 169 173 199 73 448 . . 115 7 44 86 1557 1078 Time Decay 5499 | 10 17 85 612 353 . 268 343 . 517 . 502 50 62 . . 126 60 123 160 60 130 140 446 . 284 . 356 139 262 140 . 254 Search Patrol Dispatched 100 | . . . . . . . . . . . . . . . . . . . . . . 100 . . . . . . . . . . Lost Part 992 | . . . 10 . . . 20 10 20 50 30 . . . . . . 10 . . 60 80 140 . 22 . 60 . . 160 60 260 Lost Ally 1011 | . . . . . . . 10 . . . 120 . . . . 2 . 59 30 40 80 . 160 . . . 170 . . . . 340 Purge Threat 1083 | . . . . . . . 183 . 300 . . . . . . . . . . . . . 300 . . . 300 . . . . . Squads Dispatched 126 | . 1 . 3 . . . 3 . 3 . 10 . . . . 2 1 2 . . 15 4 10 . 7 . 7 4 4 28 13 9 Investigation 32 | . 1 . 1 . . . 1 . 2 . 3 . . . . . 1 . . . 7 2 3 . 4 . 2 2 1 1 . 1 Extermination 15 | . . . . . . . . . . . 3 . . . . . . . . . 1 . 3 . . . 2 1 2 1 . 2 Reinforcement 34 | . . . 2 . . . . . 1 . 2 . . . . 2 . 2 . . 4 2 4 . 3 . 3 1 1 5 . 2 Assault 36 | . . . . . . . . . . . . . . . . . . . . . . . . . . . . . . 20 12 4 Garrison 7 | . . . . . . . 2 . . . 2 . . . . . . . . . 3 . . . . . . . . . . . Intercept 2 | . . . . . . . . . . . . . . . . . . . . . . . . . . . . . . 1 1 . Searches Triggered 1 | . . . . . . . . . . . . . . . . . . . . . . 1 . . . . . . . . . . Unchained Authorized 1 | . . . . . . . . . . . . . . . . . . . . . . . . . . . 1 . . . . . Data Miner Redirects 5 | . . . . . . . . . . . . . . . . . . . . . . . 1 . . . . . . . . 4 Construction Impeded 3 | . . . . . . . . . . . . . . . . . . 1 . . . . . . 1 . 1 . . . . . Haulers Reinforced 1 | . . . . . . . . . . . . . . . . . . . . . 1 . . . . . . . . . . . Active Scanning Responses . | . . . . . . . . . . . . . . . . . . . . . . . . . . . . . . . . . Cargo Convoy Interrupts 1 | . . . . . . . . . . . 1 . . . . . . . . . . . . . . . . . . . . . Stealth | -11 -10 -10 -9 -9 -9 -8 -8 -8 -8 -8 -7 -7 -7 -7 -6 -6 -5 -5 -5 -5 -5 -4 -4 -4 -3 -3 -3 -2 -2 -2 -1 -1 --------- Run | Yrd Mat Min Mat Min Exi Min Mat Gar Mat Gar Fac Low Low Dat Pro Fac Fac Ext Cet Arc Hub Fac Arm Lab Res Gar Res Res Qua Sec Acc Com Distress Signals 39 | . 1 . 4 . . . . . 4 . 5 . . . . . . 1 2 . . . 4 . 5 . 2 . 4 4 . 3 Communications Jammed 16 | . . . . . . . . . . . . . . . . . . . . . 12 . 4 . . . . . . . . . Distress Signals 16 | . . . . . . . . . . . . . . . . . . . . . 12 . 4 . . . . . . . . . Times Spotted 678 | . 8 2 51 8 18 10 39 11 41 16 26 . 4 . . 4 3 12 11 . 48 17 66 . 23 . 68 16 26 83 28 39 Peak Tracking Total 52 | . 4 2 5 7 9 4 5 8 5 6 6 . 4 . . 2 2 4 5 . 26 8 12 . 7 . 52 8 11 20 12 7 Tactical Retreats 65 | . . . . 1 2 . 2 2 1 2 2 . 3 . . 1 1 1 1 . 7 1 8 . 4 . 6 4 5 5 4 2 ECM-based Alert Blocks 8 | . . . . . . . . . . . . . . . . . . . . . . . . . 8 . . . . . . . Traps | -11 -10 -10 -9 -9 -9 -8 -8 -8 -8 -8 -7 -7 -7 -7 -6 -6 -5 -5 -5 -5 -5 -4 -4 -4 -3 -3 -3 -2 -2 -2 -1 -1 ------- Run | Yrd Mat Min Mat Min Exi Min Mat Gar Mat Gar Fac Low Low Dat Pro Fac Fac Ext Cet Arc Hub Fac Arm Lab Res Gar Res Res Qua Sec Acc Com Traps Triggered 26 | . 1 . 4 . . . . 2 2 5 1 . . . . . 1 2 . . . . 1 . . 3 . . 1 . 1 2 Indirectly . | . . . . . . . . . . . . . . . . . . . . . . . . . . . . . . . . . Trap Hack Attempts 15 | . . . 15 . . . . . . . . . . . . . . . . . . . . . . . . . . . . . Triggered . | . . . . . . . . . . . . . . . . . . . . . . . . . . . . . . . . . Disarmed 6 | . . . . . . . . . 6 . . . . . . . . . . . . . . . . . . . . . . . Reprogrammed 9 | . . . 3 . . . . . . . . . . . . . . . . . . 6 . . . . . . . . . . Reused 6 | . . . . . . . . . . . . . . . . . . . . . . 3 . . . . . . 1 . . 2 Traps Reconfigurated 25 | . . . . . . . . . 4 . . . . . . . . . . . . . . . 5 . . . 8 1 . 7 Traps Extracted 6 | . . . 3 . . . . . 3 . . . . . . . . . . . . . . . . . . . . . . . Installed 7 | . . 1 . . . . . . . . . . . . . . . . . . . 6 . . . . . . . . . . Triggered 6 | . . . . . . . . . . . . . . . . . . . . . . 3 . . . . . . 1 . . 2 Most Traps Carried 6 | . . 1 4 3 3 3 3 3 6 6 6 6 6 6 6 6 6 6 6 6 6 6 . . . . . . . . . . Objects Rigged 6 | . . . . . . . . . . . . . . . . . . . . . . 6 . . . . . . . . . . Exploded 1 | . . . . . . . . . . . . . . . . . . . . . . 1 . . . . . . . . . . Machines | -11 -10 -10 -9 -9 -9 -8 -8 -8 -8 -8 -7 -7 -7 -7 -6 -6 -5 -5 -5 -5 -5 -4 -4 -4 -3 -3 -3 -2 -2 -2 -1 -1 ---------- Run | Yrd Mat Min Mat Min Exi Min Mat Gar Mat Gar Fac Low Low Dat Pro Fac Fac Ext Cet Arc Hub Fac Arm Lab Res Gar Res Res Qua Sec Acc Com Machines Disabled 79 | . . 1 . . 10 . . 2 1 1 1 . . . . 2 . . . 1 2 4 7 1 1 2 . . 5 31 2 5 Max in Single Turn 21 | . . 1 . . 2 . . 1 1 1 1 . . . . 1 . . . . 1 4 1 1 1 1 . . 1 21 1 2 Garrison Access 8 | . . . . . . . . . . . 1 . . . . 1 . . . . . . . . 1 . 3 1 1 . . . Garrison Relay 5 | . . . . . . . . 2 . 1 . . . . . . . . . . . . . . . 2 . . . . . . Phase Generator 1 | . . . . . . . . . . . . . . . . . . . . . . . . . . . . . . . . 1 Network Hub 3 | . . . . . . . . . . . . . . . . . . . . . 3 . . . . . . . . . . . Energy Cycler 1 | . . . . . . . . . . . . . . . . . . . . . . . . . . . . . . . 1 . Machines Repaired . | . . . . . . . . . . . . . . . . . . . . . . . . . . . . . . . . . Machines Dismantled . | . . . . . . . . . . . . . . . . . . . . . . . . . . . . . . . . . Machines Sabotaged 2 | . . . . . . . . . . . . . . . . . . . . . 2 . . . . . . . . . . . Overloaded Fab Kills 6 | . . . . . . . . . . . . . . . . . . . . . . . 6 . . . . . . . . . Hacking | -11 -10 -10 -9 -9 -9 -8 -8 -8 -8 -8 -7 -7 -7 -7 -6 -6 -5 -5 -5 -5 -5 -4 -4 -4 -3 -3 -3 -2 -2 -2 -1 -1 --------- Run | Yrd Mat Min Mat Min Exi Min Mat Gar Mat Gar Fac Low Low Dat Pro Fac Fac Ext Cet Arc Hub Fac Arm Lab Res Gar Res Res Qua Sec Acc Com Machines Accessed 156 | . 2 1 16 . 2 . 15 . 13 . 9 . 1 4 . 13 4 2 1 . 8 5 10 . 6 2 15 7 9 5 . 6 Terminals 93 | . . . 10 . . . 8 . 8 . 4 . . . . 7 1 2 1 . 7 4 7 . 3 2 10 . 8 5 . 6 Fabricators 12 | . . . . . . . . . . . 3 . . . . 3 1 . . . . 1 3 . . . . 1 . . . . Repair Stations 8 | . . . 2 . . . 2 . 1 . . . . . . 1 . . . . . . . . . . . 2 . . . . Recycling Units 13 | . 2 . 2 . . . 2 . 1 . 1 . . . . . 1 . . . . . . . 1 . 1 2 . . . . Scanalyzers 9 | . . . 2 . . . 2 . 2 . . . . . . 1 1 . . . . . . . . . 1 . . . . . Garrison Access 13 | . . . . . . . 1 . 1 . 1 . . . . 1 . . . . 1 . . . 2 . 3 2 1 . . . Total Hacks 589 | . 7 1 63 . 5 . 78 . 61 . 26 . 1 30 . 34 10 4 1 . 23 47 52 . 19 8 57 16 16 9 . 21 Successful 342 | . 4 1 43 . 5 . 57 . 36 . 13 . 1 30 . 19 9 2 1 . 10 27 26 . 8 2 25 5 7 5 . 6 Failed 244 | . 3 . 20 . . . 21 . 24 . 13 . . . . 14 1 2 . . 13 20 26 . 11 6 31 11 9 4 . 15 Catastrophic 49 | . 1 . . . . . 3 . 1 . 5 . . . . 5 . . . . 1 . 3 . 2 2 12 3 4 1 . 6 Database Lockouts 3 | . . . . . . . . . 1 . . . . . . 1 . . . . . . . . . . 1 . . . . . Manual 278 | . . . 33 . . . 35 . 26 . 17 . . . . 16 3 2 1 . 16 28 34 . 14 4 17 10 4 6 . 12 Terminals 354 | . . . 32 . . . 33 . 38 . 6 . . . . 15 3 4 1 . 20 43 47 . 11 8 48 . 15 9 . 21 Fabricators 36 | . . . . . . . . . . . 14 . . . . 9 3 . . . . 4 5 . . . . 1 . . . . Repair Stations 39 | . . . 12 . . . 11 . 7 . . . . . . 4 . . . . . . . . . . . 5 . . . . Recycling Units 56 | . 7 . 13 . . . 15 . 3 . 4 . . . . . 1 . . . . . . . 5 . 1 7 . . . . Scanalyzers 42 | . . . 6 . . . 18 . 10 . . . . . . 2 3 . . . . . . . . . 3 . . . . . Garrison Access 25 | . . . . . . . 1 . 3 . 2 . . . . 4 . . . . 3 . . . 3 . 5 3 1 . . . Terminal Hacks 131 | . . 1 12 . 5 . 10 . 10 . . . 1 30 . 6 2 1 1 . 3 11 16 . 1 2 10 . 4 2 . 3 Record 17 | . . . . . 4 . . . . . . . . 11 . 1 . . . . . . . . . . . . 1 . . . Part Schematic 13 | . . . 1 . . . . . . . . . . 9 . . . . . . . 2 1 . . . . . . . . . Robot Schematic 7 | . . . . . . . . . . . . . . 7 . . . . . . . . . . . . . . . . . . Robot Analysis 3 | . . . 3 . . . . . . . . . . . . . . . . . . . . . . . . . . . . . Prototype ID Bank 10 | . . . 4 . . . 1 . 1 . . . . 3 . . . . . . . 1 . . . . . . . . . . Open Door 5 | . . 1 . . . . . . . . . . 1 . . . . . 1 . . . . . . . . . 1 1 . . Open DSF 1 | . . . . . . . . . . . . . . . . 1 . . . . . . . . . . . . . . . . Level Access Points 3 | . . . . . . . . . . . . . . . . . . . . . . 1 1 . . . 1 . . . . . Branch Access Points 3 | . . . 1 . . . 1 . . . . . . . . . . . . . . . . . . . 1 . . . . . Emergency Access Points 8 | . . . . . . . 1 . . . . . . . . 1 . . . . . 1 1 . . 1 2 . . . . 1 Machine Index 1 | . . . . . . . . . . . . . . . . . . . . . . . . . . . 1 . . . . . Terminal Index 4 | . . . . . . . 1 . . . . . . . . 1 1 . . . 1 . . . . . . . . . . . Garrison Index 1 | . . . . . . . . . . . . . . . . . . . . . . . . . . . 1 . . . . . Unreport Threat 11 | . . . . . . . 3 . 2 . . . . . . . . . . . . . 4 . . . 2 . . . . . Locate Traps 9 | . . . . . . . . . 2 . . . . . . 1 1 1 . . . 1 1 . . . . . 2 . . . Disarm Traps 1 | . . . . . . . . . 1 . . . . . . . . . . . . . . . . . . . . . . . Reprogram Traps 1 | . . . . . . . . . . . . . . . . . . . . . . 1 . . . . . . . . . . Maintenance Status 1 | . . . . . . . . . . . . . . . . . . . . . . 1 . . . . . . . . . . Recall Investigation 1 | . . . . . . . . . . . . . . . . . . . . . . . 1 . . . . . . . . . Recall Extermination 2 | . . . . . . . . . . . . . . . . . . . . . . . 2 . . . . . . . . . Hauler Manifests 4 | . . . 1 . . . 1 . 2 . . . . . . . . . . . . . . . . . . . . . . . Registered Components 3 | . . . . . . . 1 . . . . . . . . . . . . . . 1 . . . . 1 . . . . . Registered Prototypes 2 | . . . 1 . . . . . . . . . . . . . . . . . . . 1 . . . . . . . . . Zone Layout 15 | . . . 1 . . . 1 . 2 . . . . . . 1 . . . . 2 2 4 . 1 . 1 . . . . . Security Stations 1 | . . . . . . . . . . . . . . . . . . . . . . . . . . 1 . . . . . . Proto ID Catalog 1 | . . . . . 1 . . . . . . . . . . . . . . . . . . . . . . . . . . . Activate Exoskeleton 1 | . . . . . . . . . . . . . . . . . . . . . . . . . . . . . . 1 . . Disengage Seal 2 | . . . . . . . . . . . . . . . . . . . . . . . . . . . . . . . . 2 Fabricator Hacks 15 | . . . . . . . . . . . 5 . . . . 2 2 . . . . 3 3 . . . . . . . . . Network Status 5 | . . . . . . . . . . . 1 . . . . 1 1 . . . . 1 1 . . . . . . . . . Load Schematic 5 | . . . . . . . . . . . 2 . . . . . 1 . . . . 1 1 . . . . . . . . . Build 5 | . . . . . . . . . . . 2 . . . . 1 . . . . . 1 1 . . . . . . . . . Repair Station Hacks 26 | . . . 8 . . . 11 . 4 . . . . . . 3 . . . . . . . . . . . . . . . . Scan Component 14 | . . . 4 . . . 6 . 2 . . . . . . 2 . . . . . . . . . . . . . . . . Repair 12 | . . . 4 . . . 5 . 2 . . . . . . 1 . . . . . . . . . . . . . . . . Recycling Unit Hacks 16 | . 4 . 6 . . . 3 . 1 . . . . . . . 1 . . . . . . . 1 . . . . . . . Recycle Component 2 | . 1 . 1 . . . . . . . . . . . . . . . . . . . . . . . . . . . . . Process 1 | . . . 1 . . . . . . . . . . . . . . . . . . . . . . . . . . . . . Report Inventory 9 | . 2 . 2 . . . 2 . 1 . . . . . . . 1 . . . . . . . 1 . . . . . . . Retrieve Components 4 | . 1 . 2 . . . 1 . . . . . . . . . . . . . . . . . . . . . . . . . Scanalyzer 33 | . . . 4 . . . 15 . 8 . . . . . . 1 3 . . . . . . . . . 2 . . . . . Insert Component 12 | . . . 2 . . . 5 . 3 . . . . . . . 1 . . . . . . . . . 1 . . . . . Analyze 13 | . . . 1 . . . 9 . 3 . . . . . . . . . . . . . . . . . . . . . . . Retrieve Study 8 | . . . 1 . . . 1 . 2 . . . . . . 1 2 . . . . . . . . . 1 . . . . . Garrison Access Hacks 19 | . . . . . . . 1 . 1 . 2 . . . . 2 . . . . 1 . . . 3 . 5 3 1 . . . Unlock Access 4 | . . . . . . . 1 . 1 . . . . . . . . . . . 1 . . . 1 . . . . . . . Seal Access 8 | . . . . . . . . . . . 1 . . . . 1 . . . . . . . . 1 . 3 1 1 . . . Coupler Status 7 | . . . . . . . . . . . 1 . . . . 1 . . . . . . . . 1 . 2 2 . . . . Unauthorized Hacks 102 | . . . 13 . . . 17 . 12 . 6 . . . . 5 1 1 . . 6 13 7 . 3 . 8 2 2 3 . 3 Terminals 68 | . . . 8 . . . 10 . 9 . . . . . . 2 1 1 . . 4 12 5 . 1 . 7 . 2 3 . 3 Track 10 | . . . . . . . 1 . 1 . . . . . . . . . . . . 2 2 . . . 2 . . 2 . . Assimilate 7 | . . . . . . . 1 . . . . . . . . 1 . 1 . . . 1 . . . . 2 . 1 . . . Botnet 21 | . . . 2 . . . 2 . 2 . . . . . . 1 1 . . . . 3 3 . 1 . 3 . . 1 . 2 Detonate 1 | . . . . . . . . . . . . . . . . . . . . . . 1 . . . . . . . . . . Disrupt 3 | . . . . . . . . . . . . . . . . . . . . . . 2 . . . . . . 1 . . . Operators 5 | . . . 1 . . . 1 . 1 . . . . . . . . . . . . 1 . . . . . . . . . 1 Skim 17 | . . . 5 . . . 5 . 5 . . . . . . . . . . . . 2 . . . . . . . . . . Sabotage 4 | . . . . . . . . . . . . . . . . . . . . . 4 . . . . . . . . . . . Fabricators 10 | . . . . . . . . . . . 5 . . . . 2 . . . . . 1 2 . . . . . . . . . Report 2 | . . . . . . . . . . . 1 . . . . 1 . . . . . . . . . . . . . . . . Prioritize 3 | . . . . . . . . . . . 1 . . . . . . . . . . 1 1 . . . . . . . . . Liberate 1 | . . . . . . . . . . . 1 . . . . . . . . . . . . . . . . . . . . . Haulers 2 | . . . . . . . . . . . 1 . . . . 1 . . . . . . . . . . . . . . . . Overload 1 | . . . . . . . . . . . . . . . . . . . . . . . 1 . . . . . . . . . Recompile 1 | . . . . . . . . . . . 1 . . . . . . . . . . . . . . . . . . . . . Repair Stations 4 | . . . 1 . . . . . 1 . . . . . . 1 . . . . . . . . . . . 1 . . . . Mechanics 3 | . . . 1 . . . . . 1 . . . . . . 1 . . . . . . . . . . . . . . . . Patch 1 | . . . . . . . . . . . . . . . . . . . . . . . . . . . . 1 . . . . Recycling Units 18 | . . . 4 . . . 7 . 2 . 1 . . . . . . . . . . . . . 2 . 1 1 . . . . Monitor 2 | . . . 1 . . . 1 . . . . . . . . . . . . . . . . . . . . . . . . . Reject 4 | . . . 1 . . . 2 . 1 . . . . . . . . . . . . . . . . . . . . . . . Recyclers 6 | . . . 1 . . . 2 . . . . . . . . . . . . . . . . . 1 . 1 1 . . . . Mask 6 | . . . 1 . . . 2 . 1 . 1 . . . . . . . . . . . . . 1 . . . . . . . Scanalyzers . | . . . . . . . . . . . . . . . . . . . . . . . . . . . . . . . . . Garrison Access 2 | . . . . . . . . . . . . . . . . . . . . . 2 . . . . . . . . . . . Broadcast 1 | . . . . . . . . . . . . . . . . . . . . . 1 . . . . . . . . . . . Watchers 1 | . . . . . . . . . . . . . . . . . . . . . 1 . . . . . . . . . . . Data Cores Recovered 5 | . . . . . . . 1 . . . 1 . . . . . . . . . 1 . . . . . . . 1 . . 1 Used 2 | . . . . . . . 1 . . . . . . . . . . . . . 1 . . . . . . . . . . . Hacking Detections 107 | . 2 . 15 . . . 14 . 13 . 7 . . . . 11 2 1 . . 4 4 4 . 5 2 10 5 3 3 . 2 Full Trace Events 9 | . 1 . 1 . . . 1 . . . 2 . . . . . . . . . 2 1 1 . . . . . . . . . Feedback Events . | . . . . . . . . . . . . . . . . . . . . . . . . . . . . . . . . . Feedback Blocked . | . . . . . . . . . . . . . . . . . . . . . . . . . . . . . . . . . Robot Schematics Acquired 7 | . . . . . . . . . . . . . . 7 . . . . . . . . . . . . . . . . . . Robots Built 7 | . . . . . . . . . . . 3 . . . . 4 . . . . . . . . . . . . . . . . Authchips . | . . . . . . . . . . . . . . . . . . . . . . . . . . . . . . . . . Time 180 | . . . . . . . . . . . 99 . . . . 81 . . . . . . . . . . . . . . . . Total Robot Build Rating 10 | . . . . . . . . . . . 6 . . . . 4 . . . . . . . . . . . . . . . . Part Schematics Acquired 27 | . . . 1 . . . 4 . 2 . . . . 9 . . . . . . . 2 1 . . . . . 6 2 . . Parts Built 4 | . . . . . . . . . . . 1 . . . . . . . . . . 2 1 . . . . . . . . . Authchips 1 | . . . . . . . . . . . 1 . . . . . . . . . . . . . . . . . . . . . Time 194 | . . . . . . . . . . . 116 . . . . . . . . . . 53 25 . . . . . . . . . Total Part Build Rating 16 | . . . . . . . . . . . 3 . . . . . . . . . . 12 1 . . . . . . . . . Part Studies Acquired 8 | . . . 1 . . . 1 . 2 . . . . . . 1 2 . . . . . . . . . 1 . . . . . Parts Repaired 12 | . . . 4 . . . 5 . 2 . . . . . . 1 . . . . . . . . . . . . . . . . Time 807 | . . . 257 . . . 361 . 151 . . . . . . 38 . . . . . . . . . . . . . . . . Parts Recycled 2 | . 1 . 1 . . . . . . . . . . . . . . . . . . . . . . . . . . . . . Recycled Matter 90 | . . . 90 . . . . . . . . . . . . . . . . . . . . . . . . . . . . . Retrieved Matter . | . . . . . . . . . . . . . . . . . . . . . . . . . . . . . . . . . Retrieved Components 31 | . 6 . 19 . . . 6 . . . . . . . . . . . . . . . . . . . . . . . . . Parts Scanalyzed 7 | . . . 1 . . . 4 . 2 . . . . . . . . . . . . . . . . . . . . . . . Part Schematics Acquired 6 | . . . . . . . 4 . 2 . . . . . . . . . . . . . . . . . . . . . . . Parts Damaged 4 | . . . 1 . . . 2 . 1 . . . . . . . . . . . . . . . . . . . . . . . Bothacking | -11 -10 -10 -9 -9 -9 -8 -8 -8 -8 -8 -7 -7 -7 -7 -6 -6 -5 -5 -5 -5 -5 -4 -4 -4 -3 -3 -3 -2 -2 -2 -1 -1 ------------ Run | Yrd Mat Min Mat Min Exi Min Mat Gar Mat Gar Fac Low Low Dat Pro Fac Fac Ext Cet Arc Hub Fac Arm Lab Res Gar Res Res Qua Sec Acc Com Used RIF Installer 3 | . . . . . . . . 1 . 1 . . . . . . . . . . . . . . . 1 . . . . . . Hotswap 1 | . . . . . . . . . . 1 . . . . . . . . . . . . . . . . . . . . . . Autooverride 1 | . . . . . . . . . . . . . . . . . . . . . . . . . . 1 . . . . . . Robots Hacked 15 | . . . 1 1 3 . . . 1 1 4 . . 1 . 1 . 1 . 1 . . . . . . . . . . . . Non-combat 10 | . . . 1 . 3 . . . 1 . 4 . . . . 1 . . . . . . . . . . . . . . . . Combat 5 | . . . . 1 . . . . . 1 . . . 1 . . . 1 . 1 . . . . . . . . . . . . Robot Hacks Applied 16 | . . . 1 1 3 . . . 1 1 5 . . 1 . 1 . 1 . 1 . . . . . . . . . . . . parse_system 7 | . . . . 1 3 . . . . . . . . 1 . . . 1 . 1 . . . . . . . . . . . . no_distress 1 | . . . 1 . . . . . . . . . . . . . . . . . . . . . . . . . . . . . find_chute 2 | . . . . . . . . . . . 1 . . . . 1 . . . . . . . . . . . . . . . . drop_inventory 1 | . . . . . . . . . . . 1 . . . . . . . . . . . . . . . . . . . . . find_recycling 2 | . . . . . . . . . 1 . 1 . . . . . . . . . . . . . . . . . . . . . map_route 1 | . . . . . . . . . . . 1 . . . . . . . . . . . . . . . . . . . . . link_fov 1 | . . . . . . . . . . . 1 . . . . . . . . . . . . . . . . . . . . . overwrite_iff 1 | . . . . . . . . . . 1 . . . . . . . . . . . . . . . . . . . . . . Relay Couplers Released 22 | . . . . . . . . 6 . 4 . . . . . . . . . . . . . . 1 8 3 . . . . . Machine Destruction 22 | . . . . . . . . 6 . 4 . . . . . . . . . . . . . . 1 8 3 . . . . . Attached 4 | . . . . . . . . . . 2 1 . . . . . . . . . . . . . 1 . . . . . . . Fabnet Peak Effective % . | . . . . . . . . . . . . . . . . . . . . . . . . . . . . . . . . . Robots Rewired 18 | . . . . . . . . . . . . . . . . . . . . . . . 8 . . 9 . . . . . 1 Allies Hacked 2 | . . . . . . . . . . . . . . . . . . . . . . . 2 . . . . . . . . . Hacks Repelled . | . . . . . . . . . . . . . . . . . . . . . . . . . . . . . . . . . Allies | -11 -10 -10 -9 -9 -9 -8 -8 -8 -8 -8 -7 -7 -7 -7 -6 -6 -5 -5 -5 -5 -5 -4 -4 -4 -3 -3 -3 -2 -2 -2 -1 -1 -------- Run | Yrd Mat Min Mat Min Exi Min Mat Gar Mat Gar Fac Low Low Dat Pro Fac Fac Ext Cet Arc Hub Fac Arm Lab Res Gar Res Res Qua Sec Acc Com Total Allies 97 | . . . . . . . 1 . . 1 6 . . . . 4 . 8 5 . . . 8 . . 9 1 . . 1 . 53 Largest Group 25 | . . . . . . . 1 . . 1 3 . . . . 4 . 4 7 6 4 . 6 . . 9 9 . . 1 1 25 Highest-Rated Group 2988 | . . . . . . . 10 . . 16 48 . . . . 24 . 220 664 511 309 . 280 . . 466 466 . . 1204 1204 2988 Highest-Rated Ally 1204 | . . . . . . . 10 . . 16 16 . . . . 6 . 159 159 96 96 . 68 . . 64 64 . . 1204 1204 1204 Total Orders 10 | . . . . . . . . . . . . . . . . . . 2 2 4 . . 2 . . . . . . . . . STAY 1 | . . . . . . . . . . . . . . . . . . 1 . . . . . . . . . . . . . . ROAM 3 | . . . . . . . . . . . . . . . . . . . 1 2 . . . . . . . . . . . . FOLLOW 2 | . . . . . . . . . . . . . . . . . . 1 . 1 . . . . . . . . . . . . AID 2 | . . . . . . . . . . . . . . . . . . . 1 1 . . . . . . . . . . . . EXPLORE 2 | . . . . . . . . . . . . . . . . . . . . . . . 2 . . . . . . . . . Ally Attacks 601 | . . . . . . . . . . 3 19 . . . . . . 23 62 46 10 . 59 . . . 56 . . 89 21 213 Total Damage 34221 | . . . . . . . . . . 16 335 . . . . . . 699 2089 2057 371 . 2417 . . . 2056 . . 8914 2444 12823 Kills 115 | . . . . . . . . . . . 4 . . . . . . 6 7 4 1 . 9 . . . 12 . . 25 8 39 Allies Corrupted 3 | . . . . . . . . . . . . . . . . . . . . . . . 2 . . . . . . . . 1 Allies Melted . | . . . . . . . . . . . . . . . . . . . . . . . . . . . . . . . . . Turrets Deployed 1 | . . . . . . . . . . . 1 . . . . . . . . . . . . . . . . . . . . . Intel | -11 -10 -10 -9 -9 -9 -8 -8 -8 -8 -8 -7 -7 -7 -7 -6 -6 -5 -5 -5 -5 -5 -4 -4 -4 -3 -3 -3 -2 -2 -2 -1 -1 ------- Run | Yrd Mat Min Mat Min Exi Min Mat Gar Mat Gar Fac Low Low Dat Pro Fac Fac Ext Cet Arc Hub Fac Arm Lab Res Gar Res Res Qua Sec Acc Com Active Infowar (turns) 10860 | 9 359 875 315 . . . 203 . . 51 224 107 245 36 147 372 151 422 327 121 279 287 1103 395 1335 599 804 400 575 586 173 360 Optics 8112 | . . . . . . . . . . . . . . . . 304 151 422 327 121 279 287 1103 395 1335 599 804 400 575 586 173 251 Sensors 4838 | . . . . . . . . . . . 51 107 245 36 147 372 149 240 . . 119 210 . . 904 22 769 298 546 514 . 109 Terrain 806 | . . . . . . . . . . . . . . . . . . . . . . . . . . . . . 325 481 . . Structural 1744 | . . . . . . . . . . . . . . . . . . . . . . . . . 327 22 455 275 478 187 . . Seismic 1558 | 9 359 875 315 . . . . . . . . . . . . . . . . . . . . . . . . . . . . . T.N.C. 203 | . . . . . . . 203 . . . . . . . . . . . . . . . . . . . . . . . . . Cloaking 295 | . . . . . . . . . . . . . . . . . . . . . . . 294 . . . . . . . . 1 Jamming 410 | . . . . . . . . . . 51 173 . . . . . 34 22 1 . 25 . 87 . 17 . . . . . . . ECM 369 | . . . . . . . . . . . . . . . . . . . . . . . . . 368 1 . . . . . . Robot Analysis Total 3 | . . . 3 . . . . . . . . . . . . . . . . . . . . . . . . . . . . . Derelict Logs Recovered 6 | . . 1 . 1 . . . . . . . 2 . . 2 . . . . . . . . . . . . . . . . . Drone Launches 2 | . . . . . . . . . . . . . . . . . . . . . . . 2 . . . . . . . . . Drone Recoveries . | . . . . . . . . . . . . . . . . . . . . . . . . . . . . . . . . . Exploration | -11 -10 -10 -9 -9 -9 -8 -8 -8 -8 -8 -7 -7 -7 -7 -6 -6 -5 -5 -5 -5 -5 -4 -4 -4 -3 -3 -3 -2 -2 -2 -1 -1 ------------- Run | Yrd Mat Min Mat Min Exi Min Mat Gar Mat Gar Fac Low Low Dat Pro Fac Fac Ext Cet Arc Hub Fac Arm Lab Res Gar Res Res Qua Sec Acc Com Turns Passed 40627 | 98 359 875 2988 6299 11576 1753 1952 1148 2300 825 1348 107 288 38 147 372 151 422 327 121 279 287 1103 395 1335 599 804 400 575 586 173 597 Spaces Moved 22367 | 63 185 481 1047 661 1859 531 793 383 919 362 1355 235 846 99 432 753 320 489 226 85 616 349 921 262 1829 947 1579 528 1002 849 369 992 Core 653 | 3 . . 1 . 538 . . . . . . . . . . . . . . . . . . . . . . . . 9 94 8 Treads 2275 | . . . 5 . 972 531 153 383 156 59 . . . . . . . . . . . . . . . . . . . . . 16 Legs 182 | . . . . . 15 . . . . . . . . . . . . . . . . . 31 13 123 . . . . . . . Wheels 4548 | 60 185 481 1041 661 334 . 640 . 763 303 80 . . . . . . . . . . . . . . . . . . . . . Hover 1084 | . . . . . . . . . . . . . . . . . . . . . . . 834 249 1 . . . . . . . Flight 13625 | . . . . . . . . . . . 1275 235 846 99 432 753 320 489 226 85 616 349 56 . 1705 947 1579 528 1002 840 275 968 Fastest Speed 17 | 50 95 145 160 215 125 240 135 240 135 160 28 28 26 26 26 26 26 21 28 28 17 26 49 57 32 33 32 37 34 34 32 22 Average Speed 123 | 88 147 154 199 215 590 315 162 240 164 168 61 35 27 26 26 26 27 28 28 28 24 55 64 68 43 33 34 41 36 38 42 35 Slowest Speed 1700 | 95 200 175 1350 215 1700 320 320 240 240 240 379 95 95 94 26 26 28 99 28 28 91 360 157 360 270 33 122 122 117 250 50 160 Overloaded Moves 30 | . . . . . . . . . . . . . . . . . . 14 . . 16 . . . . . . . . . . . Propulsion Burnouts . | . . . . . . . . . . . . . . . . . . . . . . . . . . . . . . . . . Robots Hopped 74 | . . . . . . . . . . . 10 2 . . . 2 1 6 . . 13 5 . . 7 2 7 4 4 2 4 5 Potential Cave-ins . | . . . . . . . . . . . . . . . . . . . . . . . . . . . . . . . . . Cave-ins Triggered . | . . . . . . . . . . . . . . . . . . . . . . . . . . . . . . . . . Teleports 97 | . . . . . 79 . . . . . 2 . . . . . . 3 . . 1 2 1 . 1 . 4 1 . 3 . . Exploration Rate (%) 58 | 3 43 91 90 98 92 94 64 41 76 39 27 48 69 72 66 20 10 64 74 85 57 13 60 95 54 96 55 25 90 68 19 38 Regions Visited 32 Branch Regions 17 Pre-discovered Areas 7 | . . 2 1 1 1 . . . 1 . . . . 1 . . . . . . . . . . . . . . . . . . Known Exits Taken 23 | . . . 1 . . 1 1 . 1 . 1 1 1 1 1 1 1 1 1 1 1 1 . 1 1 . 1 1 1 1 1 . Unknown Exits Taken 6 | 1 1 1 . 1 1 . . . . . . . . . . . . . . . . . 1 . . . . . . . . . Scrap Searched 12 | . . 1 . 3 . 1 . . . . . 2 1 . 4 . . . . . . . . . . . . . . . . . Spaces Dug 379 | . . . 12 14 8 25 28 32 11 55 17 . 5 . . 4 3 . . . 16 . 20 . 27 1 23 10 13 43 . 12 Terrain Destroyed 944 | . . . 31 14 21 39 62 32 27 57 22 . 5 . . 4 3 28 . . 18 29 36 . 38 1 24 10 13 307 40 83 Melee 139 | . . . 1 . . . 1 32 . 6 11 . 5 . . 4 3 . . . 9 . 8 . 20 1 21 8 6 3 . . Projectile 69 | . . . . . 7 1 . . . 2 . . . . . . . . . . 9 . 17 . 18 . 3 2 7 3 . . AOE 735 | . . . 30 14 14 38 61 . 27 49 11 . . . . . . 28 . . . 29 11 . . . . . . 301 40 82 Terrain Rammed . | . . . . . . . . . . . . . . . . . . . . . . . . . . . . . . . . . Walls Destroyed . | . . . . . . . . . . . . . . . . . . . . . . . . . . . . . . . . . Machines Disabled . | . . . . . . . . . . . . . . . . . . . . . . . . . . . . . . . . . Actions | -11 -10 -10 -9 -9 -9 -8 -8 -8 -8 -8 -7 -7 -7 -7 -6 -6 -5 -5 -5 -5 -5 -4 -4 -4 -3 -3 -3 -2 -2 -2 -1 -1 --------- Run | Yrd Mat Min Mat Min Exi Min Mat Gar Mat Gar Fac Low Low Dat Pro Fac Fac Ext Cet Arc Hub Fac Arm Lab Res Gar Res Res Qua Sec Acc Com Total 33914 | 88 244 604 1752 5508 2364 574 1369 511 1572 513 1824 252 890 108 452 918 376 752 465 175 690 441 1382 471 2242 1220 1742 678 1161 1038 377 1161 Wait 8860 | . 15 96 479 4826 301 15 454 16 509 35 309 8 26 . 7 137 36 223 197 77 9 56 251 174 175 86 71 108 56 63 . 45 Move 22197 | 62 184 480 1046 660 1858 530 793 382 919 361 1334 230 845 98 431 748 317 476 225 84 591 339 920 261 1816 942 1564 520 994 845 361 981 Hop 66 | . . . . . . . . . . . 10 2 . . . 2 1 6 . . 11 4 . . 5 2 7 3 3 2 3 5 Pick Up 251 | 10 19 8 20 . 39 . 10 3 4 5 12 . . . . 6 4 1 2 1 4 9 26 8 26 5 5 4 10 9 . 1 Fast Attach 237 | 2 2 . 18 . 17 . 9 1 11 4 6 . 2 . . 5 . 2 3 1 4 5 19 7 44 . 5 10 12 9 5 34 Attach 172 | 5 1 . 5 . 13 . 3 . . 4 28 3 4 2 . 1 5 3 1 1 10 7 25 2 17 1 5 3 6 9 2 6 Detach 86 | . . . . . 3 . . . . . 15 3 3 2 . 2 . 3 3 1 6 5 14 2 9 . 1 1 2 5 2 4 Swap 216 | . 2 6 32 4 5 3 20 13 17 18 18 2 1 1 1 . 4 4 6 2 8 . 5 . 14 . 12 1 12 3 . 2 Drop 320 | . 5 8 28 . 26 1 19 8 18 7 26 1 . . . 7 4 . 5 1 7 9 22 8 45 5 13 8 18 8 1 12 Fire 775 | 9 16 5 99 17 45 25 60 48 92 32 15 . 4 5 . 1 . 7 23 1 19 1 31 9 54 . 10 3 34 46 3 61 Melee 402 | . . . 9 1 57 . 1 38 1 22 36 3 5 . 13 9 5 5 . 6 21 . 25 . 37 10 49 17 14 10 . 8 Ram 1 | . . . 1 . . . . . . . . . . . . . . . . . . . . . . . . . . . . . Kick . | . . . . . . . . . . . . . . . . . . . . . . . . . . . . . . . . . Crush 2 | . . . . . . . . . 1 1 . . . . . . . . . . . . . . . . . . . . . . Escape Stasis 93 | . . . . . . . . 2 . 24 15 . . . . . . 22 . . . . . . . . . . . 29 . 1 Rewire 214 | . . . . . . . . . . . . . . . . . . . . . . . 44 . . 169 . . . . . 1 Trap 22 | . . 1 15 . . . . . . . . . . . . . . . . . . 6 . . . . . . . . . . Miscellaneous . | . . . . . . . . . . . . . . . . . . . . . . . . . . . . . . . . . Route ------- -11/Scrapyard -10/Materials (discovered 2 exits: *Mat / *Min) -10/Mines (discovered 2 exits: *Mat x2) -9/Materials (discovered 5 exits: *Mat x3 / *Min x2) -9/Mines (discovered 3 exits: *Mat x2 / *Exi) -9/Exiles (discovered 2 exits: [*Min x2]) -8/Mines (discovered 2 exits: *Mat x2) -8/Materials (discovered 3 exits: *Fac x2 / Gar) -8/Garrison -8/Materials (discovered 4 exits: *Fac x3 / Gar) -8/Garrison -7/Factory (discovered 7 exits: *Fac x4 / *Sto x2 / *Low) -7/Lower Caves -7/Lower Caves -7/Data Miner -6/Proximity Caves -6/Factory (discovered 3 exits: *Fac / *Low x2) -5/Factory -5/Extension (discovered 2 exits: *Fac / *Cet) -5/Cetus (discovered 2 exits: *Fac / *Arc) -5/Archives (discovered 3 exits: *Fac / *Hub x2) -5/Hub_04(d) (discovered 4 exits: *Fac x3 / Gar) -4/Factory (discovered 5 exits: Res x4 / *Arm) -4/Armory (discovered 3 exits: *Res x2 / [*Lab]) -4/Lab -3/Research (discovered 2 exits: *Res / Gar) -3/Garrison (discovered 3 exits: *Res x3) -3/Research (discovered 3 exits: *Res x3) -2/Research -2/Quarantine (discovered 3 exits: *Acc / *Sec / *Frg) -2/Section 7 -1/Access -1/Command To Fleet Rendezvous History --------- Turn | Location | Event 32 | -11/Scrapyard | Discovered new exit (range 16) 99 | -11/Scrapyard | Entered Materials 236 | -10/Materials | Discovered new exit (range 4) 315 | -10/Materials | Build established: Mutant 371 | -10/Materials | Discovered new exit (range 15) 458 | -10/Materials | Entered Mines 459 | -10/Mines | Learned location of Storage (-7) 463 | -10/Mines | Found DCF Scrap (15 items) 494 | -10/Mines | Discovered new exit (range 9) 692 | -10/Mines | Received a Rocket Launcher from a helpful Derelict 790 | -10/Mines | Found a hidden stash of uninstalled traps 1034 | -10/Mines | Met a Derelict who couldn't figure out how to use a Trap Extractor 1210 | -10/Mines | Found a damaged Exp. Sensor Array with a note attached 1214 | -10/Mines | Found Prototype Device 1220 | -10/Mines | Discovered new exit (range 14) 1333 | -10/Mines | Entered Materials 1333 | -9/Materials | Evolved 2 slots: Propulsion x1, Utility x1 1490 | -9/Materials | Discovered new exit (range 9) 2036 | -9/Materials | Build established: Scavenger-Mutant 2402 | -9/Materials | Repaired Minigun 2455 | -9/Materials | Repaired Hvy. Ion Engine 2502 | -9/Materials | Repaired Hrd. Light Armor Plating 2645 | -9/Materials | Identified exit to Mines 2851 | -9/Materials | Build established: Mutant 2857 | -9/Materials | Discovered new exit (range 15) 2911 | -9/Materials | Identified Exp. Sensor Array 3166 | -9/Materials | Loaded intel: 7 trap records 3320 | -9/Materials | Learned Storage garrison access intel 3338 | -9/Materials | Discovered new exit (range 16) 3389 | -9/Materials | Identified exit to Materials 3438 | -9/Materials | Learned location of 1 exit from Storage 3537 | -9/Materials | Repaired Broken Exp. Sensor Array 4321 | -9/Materials | Entered Mines 4555 | -9/Mines | Destroyed 7 combat bots 4608 | -9/Mines | Learned location of Zion (-6) 4729 | -9/Mines | Discovered exit to Materials (range 6) 4794 | -9/Mines | Deemed a non-threat by the Exiles lab entrance 4794 | -9/Mines | Discovered new exit (range 5) 4894 | -9/Mines | Assembled infested the area 5000 | -9/Mines | Met 8R-AWN 5348 | -9/Mines | Build established: Scavenger-Mutant 10046 | -9/Mines | Discovered exit to Materials (range 7) 10620 | -9/Mines | Entered Exiles 10655 | -9/Exiles | Discovered new exit (range 15) 10679 | -9/Exiles | Welcomed by 8R-AWN 10709 | -9/Exiles | Met EX-HEX 10818 | -9/Exiles | Met EX-BIN 10846 | -9/Exiles | Met EX-DEC 11152 | -9/Exiles | Found Blink Core 11439 | -9/Exiles | Build established: Mutant 19052 | -9/Exiles | Found Trap Reconfigurator 19083 | -9/Exiles | Found Longsword +1 19114 | -9/Exiles | Found Gui. Plasma Cannon 19301 | -9/Exiles | Attacked by the Exiles 19436 | -9/Exiles | Core integrity fell below 50% 19609 | -9/Exiles | Found 8R-AWN's Boregun 19612 | -9/Exiles | Found 8R-AWN's Boregun 20055 | -9/Exiles | Destroyed 8R-AWN 20063 | -9/Exiles | Found Exp. Targeting Computer 20166 | -9/Exiles | Lost 3 parts (2n1u) 20674 | -9/Exiles | Build established: Scavenger-Mutant 21050 | -9/Exiles | Destroyed EX-DEC 21083 | -9/Exiles | Destroyed EX-BIN 21091 | -9/Exiles | Destroyed EX-HEX 21662 | -9/Exiles | Found Deploy-a-Sentry 21674 | -9/Exiles | Found Exp. Core Analyzer 22177 | -9/Exiles | Discovered new exit (range 10) 22196 | -9/Exiles | Stole four prototypes: Trap Reconfigurator, Longsword +1, Deploy-a-Sentry, Gui. Plasma Cannon 22196 | -9/Exiles | Entered Mines 22485 | -8/Mines | Discovered exit to Materials (range 9) 23227 | -8/Mines | Discovered exit to Materials (range 8) 23949 | -8/Mines | Entered Materials 23949 | -8/Materials | Evolved 2 slots: Propulsion x1, Utility x1 24239 | -8/Materials | Repaired Adv. Weapon Cycler 24341 | -8/Materials | Repaired Adv. Myomer Leg 24368 | -8/Materials | Repaired Lgt. Treads 24552 | -8/Materials | Repaired Rocket Launcher 24568 | -8/Materials | Discovered new exit (range 11) 24893 | -8/Materials | Repaired Broken Exp. Sensor Array 25301 | -8/Materials | Discovered new exit (range 5) 25527 | -8/Materials | Watched by a mysterious "MATRIX" hacker. 25560 | -8/Materials | Build established: Mutant 25693 | -8/Materials | Learned location of 2 exits from Factory 25758 | -8/Materials | Garrison activated, responded to threat 25901 | -8/Materials | Identified exit to Garrison 25901 | -8/Materials | Entered Garrison 26003 | -8/Garrison | Installed Relay Interface Framework 26174 | -8/Garrison | Build established: Scavenger-Mutant 26319 | -8/Garrison | Triggered checkpoint 26378 | -8/Garrison | Garrison Relay disabled 26679 | -8/Garrison | Triggered checkpoint 26853 | -8/Garrison | Triggered checkpoint 26918 | -8/Garrison | Garrison Relay disabled 26999 | -8/Garrison | Discovered new exit (range 5) 27049 | -8/Garrison | Entered Materials 27089 | -8/Materials | Central database locked down 27463 | -8/Materials | Discovered new exit (range 16) 28766 | -8/Materials | Repaired Broken Adv. Weapon Cycler 28823 | -8/Materials | Repaired Rnf. Fission Core 28951 | -8/Materials | Learned Factory emergency access door positions 28996 | -8/Materials | Learned location of 2 exits from Factory 29056 | -8/Materials | Identified exit to Factory 29070 | -8/Materials | Learned location of 1 exit from Extension 29076 | -8/Materials | Learned Storage garrison access intel 29092 | -8/Materials | Learned 2 Storage zone layouts 29118 | -8/Materials | Learned Storage emergency access door positions 29349 | -8/Materials | Identified exit to Garrison 29349 | -8/Materials | Entered Garrison 29455 | -8/Garrison | Core integrity fell below 50% 29515 | -8/Garrison | Lost 5 parts (2n2u1w) 29549 | -8/Garrison | Triggered checkpoint 29567 | -8/Garrison | Garrison Relay disabled 29851 | -8/Garrison | Triggered checkpoint 30110 | -8/Garrison | Discovered exit to Factory (range 13) 30132 | -8/Garrison | Expanded RIF knowledge: Hotswap 30174 | -8/Garrison | Entered Factory 30174 | -7/Factory | Evolved 2 slots: Power x1, Utility x1 30175 | -7/Factory | Identified exit to Storage 30176 | -7/Factory | Identified exit to Factory 30426 | -7/Factory | Discovered exit to Storage (range 16) 30429 | -7/Factory | Fabricated B-36 Bruiser (x3) 30579 | -7/Factory | Discovered new exit (range 13) 30596 | -7/Factory | DAS Turret deployed 30941 | -7/Factory | Fabricated Imp. VTOL Module (x1) 31052 | -7/Factory | Cargo convoy interrupted 31317 | -7/Factory | Found Exp. Melee Analysis Suite 31503 | -7/Factory | Identified exit to Lower Caves 31522 | -7/Factory | Entered Lower Caves 31540 | -7/Lower Caves | Learned Factory emergency access door positions 31613 | -7/Lower Caves | Discovered new exit (range 13) 31618 | -7/Lower Caves | Learned location of 1 exit from Factory 31629 | -7/Lower Caves | Identified exit to Lower Caves 31629 | -7/Lower Caves | Entered another Lower Caves area 31631 | -7/Lower Caves | Encountered a Master Thief 31709 | -7/Lower Caves | Encountered a Warlord checkpoint 31820 | -7/Lower Caves | Found Alien Artifact 31820 | -7/Lower Caves | Identified Core Expander 31820 | -7/Lower Caves | Installed Core Expander, added new Propulsion slot 31830 | -7/Lower Caves | Found DCF Scrap (14 items) 31843 | -7/Lower Caves | Discovered new exit (range 9) 31846 | -7/Lower Caves | Identified exit to Data Miner 31856 | -7/Lower Caves | Build established: Sprinter 31917 | -7/Lower Caves | Entered Data Miner 31917 | -7/Data Miner | Discovered new exit (range 6) 31919 | -7/Data Miner | Identified exit to Proximity Caves 31922 | -7/Data Miner | Met Data Miner 31931 | -7/Data Miner | Learned location of Section 7 (-2) 31931 | -7/Data Miner | Acquired the access code to Warlord's prototype stash 31935 | -7/Data Miner | Received God Mode back door access code from Data Miner 31955 | -7/Data Miner | Entered Proximity Caves 32058 | -6/Proximity Caves | Learned Factory emergency access door positions 32102 | -6/Proximity Caves | Entered Factory 32102 | -6/Factory | Evolved 2 slots: Utility x2 32103 | -6/Factory | Identified exit to Lower Caves 32166 | -6/Factory | Targeted by mysterious "MATRIX" hacker. 32168 | -6/Factory | Discovered exit to Lower Caves (range 16) 32247 | -6/Factory | Fabricated K-01 Serf (x4) 32292 | -6/Factory | Central database locked down 32356 | -6/Factory | Discovered new exit (range 14) 32377 | -6/Factory | Identified exit to Factory 32418 | -6/Factory | Repaired Imp. Light Armor Plating 32474 | -6/Factory | Entered another Factory area 32474 | -5/Factory | Evolved 2 slots: Utility x2 32619 | -5/Factory | Discovered new exit (range 22) 32624 | -5/Factory | Identified exit to Extension 32625 | -5/Factory | Entered Extension 32626 | -5/Extension | Identified exit to Factory 32637 | -5/Extension | Rescued a captive Derelict 32641 | -5/Extension | Rescued a captive Derelict 32641 | -5/Extension | Rescued a captive Derelict 32818 | -5/Extension | Rescued a captive Derelict 32837 | -5/Extension | Rescued a captive Derelict 32895 | -5/Extension | Rescued a captive Derelict 32914 | -5/Extension | Rescued a captive Derelict 32924 | -5/Extension | Rescued A7 32971 | -5/Extension | Discovered new exit (range 6) 32981 | -5/Extension | Identified exit to Cetus 33047 | -5/Extension | Entered Cetus 33047 | -5/Cetus | Accompanied by 4 allies (A7) 33052 | -5/Cetus | Acquired a Cetus Manufacturing Module code from A7 33054 | -5/Cetus | Spotted Cetus Guard 33054 | -5/Cetus | Spotted Cetus Guard 33054 | -5/Cetus | Spotted Cetus Guard 33054 | -5/Cetus | Spotted Cetus Guard 33072 | -5/Cetus | Destroyed Cetus Guard 33080 | -5/Cetus | Destroyed Cetus Guard 33098 | -5/Cetus | Destroyed Cetus Guard 33127 | -5/Cetus | Started Cetus Manufacturing Module 33139 | -5/Cetus | Escorted A7 to Cetus Mainframe 33152 | -5/Cetus | Manufactured an Enhanced Grunt 33154 | -5/Cetus | Discovered new exit (range 21) 33177 | -5/Cetus | Manufactured an Enhanced Grunt 33202 | -5/Cetus | Manufactured an Enhanced Grunt 33214 | -5/Cetus | Build established: Hacker-Sprinter 33227 | -5/Cetus | Manufactured an Enhanced Grunt 33252 | -5/Cetus | Manufactured an Enhanced Grunt 33295 | -5/Cetus | Spotted Cetus Guard 33295 | -5/Cetus | Spotted Cetus Guard 33295 | -5/Cetus | Spotted Cetus Guard 33298 | -5/Cetus | Spotted Cetus Guard 33303 | -5/Cetus | Allies destroyed Cetus Guard 33310 | -5/Cetus | Allies destroyed Cetus Guard 33322 | -5/Cetus | Allies destroyed Cetus Guard 33328 | -5/Cetus | Allies destroyed Cetus Guard 33328 | -5/Cetus | Discovered exit to Factory (range 21) 33329 | -5/Cetus | Extracted ID and sensor layout for unrecognized location from A7's data core 33332 | -5/Cetus | Found Med. Regenerative Plating 33336 | -5/Cetus | Met Revision 17 33346 | -5/Cetus | Identified exit to Archives 33374 | -5/Cetus | Entered Archives 33374 | -5/Archives | Accompanied by 6 allies 33439 | -5/Archives | Discovered new exit (range 22) 33443 | -5/Archives | Discovered new exit (range 21) 33449 | -5/Archives | Discovered exit to Factory (range 22) 33475 | -5/Archives | Identified exit to Hub_04(d) 33495 | -5/Archives | Entered Hub_04(d) 33495 | -5/Hub_04(d) | Accompanied by 4 allies 33504 | -5/Hub_04(d) | Discovered exit to Factory (range 20) 33515 | -5/Hub_04(d) | Found Prototype Launcher 33515 | -5/Hub_04(d) | Identified Scatter Rocket Array 33541 | -5/Hub_04(d) | Garrison activated, responded to threat 33616 | -5/Hub_04(d) | Discovered exit to Factory (range 21) 33634 | -5/Hub_04(d) | Identified exit to Garrison 33641 | -5/Hub_04(d) | Discovered exit to Factory (range 15) 33746 | -5/Hub_04(d) | Network Hub disabled 33757 | -5/Hub_04(d) | Network Hub disabled 33759 | -5/Hub_04(d) | Spotted Lightning 33773 | -5/Hub_04(d) | Network Hub disabled 33773 | -5/Hub_04(d) | Spotted Lightning 33773 | -5/Hub_04(d) | Spotted Lightning 33774 | -5/Hub_04(d) | Entered Factory 33774 | -4/Factory | Evolved 2 slots: Propulsion x1, Utility x1 33804 | -4/Factory | Lost 5 parts (2p2n1u) 33901 | -4/Factory | Lost 3 parts (3n) 33966 | -4/Factory | Fabricated Field Propulsion Drive (x2) 34015 | -4/Factory | Identified exit to Research 34024 | -4/Factory | Search patrols dispatched 34057 | -4/Factory | Discovered new exit (range 11) 34061 | -4/Factory | Identified exit to Armory 34061 | -4/Factory | Entered Armory 34092 | -4/Armory | Lost 3 parts (2n1u) 34461 | -4/Armory | Found Gamma Bomb Array 34464 | -4/Armory | Found Fusion Bomb Launcher 34629 | -4/Armory | Fabricated Hcp. Storage Unit (x1) 35008 | -4/Armory | Lost 3 allies 35008 | -4/Armory | P-70 Sage assimilated allied Assassin 7a 35038 | -4/Armory | Spotted B-86 Titan 35088 | -4/Armory | Core integrity fell below 50% 35124 | -4/Armory | Lost 4 parts (1p1n2u) 35129 | -4/Armory | Incoming investigation squad redirected 35161 | -4/Armory | Discovered new exit (range 4) 35164 | -4/Armory | Entered Lab 35168 | -4/Lab | Discovered exit to Research (range 9) 35174 | -4/Lab | Hidden lab's door opened automatically 35174 | -4/Lab | Sensor layout match revealed 35175 | -4/Lab | Gained access to the hidden lab's interior 35182 | -4/Lab | Lost 7 parts (2n4u1w) 35315 | -4/Lab | Found Alien Artifact 35315 | -4/Lab | Identified Integrated Mediator 35315 | -4/Lab | Installed Integrated Mediator, increased core attachment efficiency 35320 | -4/Lab | Found Alien Artifact 35387 | -4/Lab | Found Alien Artifact 35409 | -4/Lab | Found Prototype Energy Cannon 35423 | -4/Lab | Build established: Mutant 35449 | -4/Lab | Found Prototype Protection 35451 | -4/Lab | Found Deep Network Scanner 35456 | -4/Lab | Found Prototype Energy Gun 35456 | -4/Lab | Identified Tachyon Dispersion Ray 35468 | -4/Lab | Found Prototype Special Weapon 35468 | -4/Lab | Identified Gui. Remote Datajack 35559 | -4/Lab | Entered Research 35559 | -3/Research | Evolved 2 slots: Propulsion x1, Utility x1 35610 | -3/Research | Identified Exp. Powered Armor 35612 | -3/Research | Identified Warp Cannon 35726 | -3/Research | Lost 3 parts (3u) 35760 | -3/Research | Revision forces began assault on 0b10 35763 | -3/Research | Met up with Revision 17++ 35866 | -3/Research | Identified Core Regenerator 35866 | -3/Research | Used Core Regenerator, restored core integrity (+253) 35901 | -3/Research | Discovered new exit (range 5) 36034 | -3/Research | Spotted B-86 Titan 36079 | -3/Research | Lost 3 parts (3n) 36143 | -3/Research | Spotted B-86 Titan 36260 | -3/Research | Research terminal network offline 36316 | -3/Research | Spotted B-86 Titan 36398 | -3/Research | Lost 4 allies 36511 | -3/Research | Spotted Striker 36637 | -3/Research | Identified exit to Garrison 36894 | -3/Research | Entered Garrison 36894 | -3/Garrison | Discovered recently destroyed garrison 36909 | -3/Garrison | Build established: Scavenger-Scout 36959 | -3/Garrison | Expanded RIF knowledge: Autooverride 36963 | -3/Garrison | Discovered new exit (range 19) 36969 | -3/Garrison | Identified exit to Research 36975 | -3/Garrison | Found Relay Coupler [Proto] 36978 | -3/Garrison | Found Relay Coupler [Proto] 37000 | -3/Garrison | Garrison Relay disabled 37025 | -3/Garrison | Garrison Relay disabled 37321 | -3/Garrison | Discovered exit to Research (range 10) 37326 | -3/Garrison | Learned Research security intel 37398 | -3/Garrison | Discovered exit to Research (range 3) 37493 | -3/Garrison | Entered Research 37493 | -3/Research | Accompanied by 9 allies 37511 | -3/Research | Central database locked down 37511 | -3/Research | Identified Transdimensional Reconstructor 37557 | -3/Research | Unchained authorized (1B-0RG) 37626 | -3/Research | Spotted B-86 Titan 37668 | -3/Research | Lost 3 allies 37801 | -3/Research | Identified exit to Research 38254 | -3/Research | System corruption reached 10% 38262 | -3/Research | Warped through subspace 38297 | -3/Research | Entered another Research area 38297 | -2/Research | Evolved 2 slots: Propulsion x1, Utility x1 38298 | -2/Research | Lost 3 parts (1p2n) 38656 | -2/Research | Spotted B-90 Cyclops 38690 | -2/Research | Discovered new exit (range 7) 38692 | -2/Research | Identified exit to Quarantine 38697 | -2/Research | Entered Quarantine 38698 | -2/Quarantine | Spotted Alpha 7 38818 | -2/Quarantine | Destroyed Alpha 7 38822 | -2/Quarantine | Found Prototype Ballistic Gun 38822 | -2/Quarantine | Identified Multirail 38843 | -2/Quarantine | Found Alien Launcher 38916 | -2/Quarantine | Cryocooling Duct disabled 38931 | -2/Quarantine | Ambient heat levels rising (+20) 38931 | -2/Quarantine | Non-combat units ordered to evacuate 39012 | -2/Quarantine | Found Alien Artifact 39027 | -2/Quarantine | Discovered new exit (range 5) 39028 | -2/Quarantine | Identified exit to Access 39097 | -2/Quarantine | Found Alien Artifact 39111 | -2/Quarantine | Found Prototype Device 39111 | -2/Quarantine | Identified Thermal Barrier 39175 | -2/Quarantine | Met incapacitated Sigix Warrior 39175 | -2/Quarantine | Lockdown squad dispatched 39175 | -2/Quarantine | Identified Core Reset Matrix 39175 | -2/Quarantine | Identified Sigix Terminator 39175 | -2/Quarantine | Identified Terrabomb 39175 | -2/Quarantine | Used Core Reset Matrix 39177 | -2/Quarantine | Acquired the access code to the Sigix quarantine chamber 39178 | -2/Quarantine | Unlocked Sigix quarantine chamber 39179 | -2/Quarantine | Sensed 9 artifacts in vicinity 39181 | -2/Quarantine | Found Sigix Containment Pod 39195 | -2/Quarantine | Used Terrabomb 39218 | -2/Quarantine | Spotted Lightning 39219 | -2/Quarantine | Spotted Lightning 39221 | -2/Quarantine | Cryocooling Duct disabled 39231 | -2/Quarantine | Discovered exit to Access (range 13) 39236 | -2/Quarantine | Ambient heat levels rising (+20) 39236 | -2/Quarantine | Combat units ordered to evacuate 39245 | -2/Quarantine | Spotted Fortress 39268 | -2/Quarantine | Discovered new exit (range 6) 39268 | -2/Quarantine | Discovered new exit (range 7) 39269 | -2/Quarantine | Identified exit to Section 7 39270 | -2/Quarantine | Identified exit to Protoforge 39272 | -2/Quarantine | Entered Section 7 39273 | -2/Section 7 | Detected hypermatrix surge 39273 | -2/Section 7 | Sensed 12 artifacts in vicinity 39295 | -2/Section 7 | Found Integrity Redistributor 39329 | -2/Section 7 | Found Core Reset Matrix 39332 | -2/Section 7 | Sensed 10 artifacts in vicinity 39430 | -2/Section 7 | Spotted Alpha 7 39430 | -2/Section 7 | Spotted Alpha 7 39494 | -2/Section 7 | Spotted Executioner 39494 | -2/Section 7 | Spotted Executioner 39527 | -2/Section 7 | Spotted Executioner 39527 | -2/Section 7 | Spotted Executioner 39538 | -2/Section 7 | Activated Sigix Exoskeleton 39538 | -2/Section 7 | Received instructions from Sigix Warrior 39579 | -2/Section 7 | Scanned by Researcher 39603 | -2/Section 7 | Destroyed Executioner 39620 | -2/Section 7 | Allies destroyed Executioner 39622 | -2/Section 7 | Found Prototype Processor 39622 | -2/Section 7 | Identified Exp. Core Analyzer 39624 | -2/Section 7 | Found Prototype Processor 39624 | -2/Section 7 | Identified Exp. Targeting Computer 39628 | -2/Section 7 | Intercept squad dispatched 39637 | -2/Section 7 | Spotted Tracker 39640 | -2/Section 7 | Spotted Tracker 39641 | -2/Section 7 | Allies destroyed Tracker 39647 | -2/Section 7 | Destroyed Tracker 39671 | -2/Section 7 | Spotted Combat Programmer 39685 | -2/Section 7 | Spotted Striker 39686 | -2/Section 7 | Destroyed Striker 39707 | -2/Section 7 | Fired Sigix Terminator 39707 | -2/Section 7 | Destroyed Alpha 7 39728 | -2/Section 7 | Destroyed 9 combat bots 39734 | -2/Section 7 | Found Prototype Launcher 39746 | -2/Section 7 | Lost 5 parts (2n1u2w) 39748 | -2/Section 7 | Spotted Investigator 39748 | -2/Section 7 | Identified Adv. Micro-nuke Launcher 39749 | -2/Section 7 | Sigix Exoskeleton integrity reduced to 80% 39751 | -2/Section 7 | Destroyed Investigator 39795 | -2/Section 7 | Lost 5 parts (1p2n2u) 39829 | -2/Section 7 | Spotted Executioner 39835 | -2/Section 7 | Found Integrity Redistributor 39843 | -2/Section 7 | Sigix Exoskeleton integrity reduced to 60% 39851 | -2/Section 7 | Spotted B-90 Cyclops 39852 | -2/Section 7 | Discovered exit to Access (range 13) 39858 | -2/Section 7 | Core integrity fell below 50% 39858 | -2/Section 7 | Entered Access 39858 | -1/Access | Accompanied by 1 ally (Sigix Warrior) 39858 | -1/Access | Evolved 2 slots: Propulsion x2 39867 | -1/Access | Spotted B-99 Colossus 39889 | -1/Access | Lost 4 parts (2n2u) 39909 | -1/Access | Sigix Exoskeleton integrity reduced to 40% 39927 | -1/Access | Energy Cycler disabled 39995 | -1/Access | Lost 6 parts (4n2u) 40003 | -1/Access | Intercept squad dispatched 40028 | -1/Access | Discovered new exit (range 8) 40031 | -1/Access | Identified exit to Command 40031 | -1/Access | Entered Command 40031 | -1/Command | Accompanied by 1 ally (Sigix Warrior) 40067 | -1/Command | Sigix Exoskeleton integrity reduced to 20% 40165 | -1/Command | Spotted B-99 Colossus 40171 | -1/Command | Disengaged cave seal 40171 | -1/Command | Assembled emerged from the dark tunnel 40224 | -1/Command | Found Prototype Ballistic Gun 40224 | -1/Command | Identified Multirail 40281 | -1/Command | First assault squad dispatched 40301 | -1/Command | Incoming assault squad redirected 40303 | -1/Command | Incoming assault squad redirected 40329 | -1/Command | Phase Generator disabled 40461 | -1/Command | Disengaged cave seal 40461 | -1/Command | Assembled emerged from the dark tunnel 40534 | -1/Command | Spotted B-99 Colossus 40546 | -1/Command | Incoming assault squad redirected 40547 | -1/Command | Incoming assault squad redirected 40570 | -1/Command | Spotted Striker 40574 | -1/Command | Destroyed B-99 Colossus 40577 | -1/Command | Spotted Alpha 7 40578 | -1/Command | Spotted Executioner 40578 | -1/Command | Found Multirail 40580 | -1/Command | Spotted Executioner 40585 | -1/Command | Spotted Alpha 7 40589 | -1/Command | High security lockdown imminent 40593 | -1/Command | Destroyed Executioner 40601 | -1/Command | Allies destroyed Striker 40615 | -1/Command | Spotted Executioner 40615 | -1/Command | Spotted Executioner 40615 | -1/Command | Spotted Striker 40616 | -1/Command | Spotted B-99 Colossus 40618 | -1/Command | Core integrity fell below 50% 40624 | -1/Command | Emitted hypermatrix ping 40625 | -1/Command | Discovered new exit (range 8) 40628 | -1/Command | Core integrity fell below 20% 40628 | -1/Command | Identified exit to Surface 40628 | *** | Heading to fleet! Last Messages --------------- 40625_ Penetrated by Slug. 40625_ Access Shell breached. 40625_ The Access Shell folds into the floor. 40625_ EXIT=FOUND 40626_ Stasis Trap reprogrammed. 40627_ Triggered Stasis Trap. 40627_ A bubble of rippling energy engulfs the area. 40627_ Field strength at 94. 40627_ Knocked back. 40627_ Exp. Core Analyzer destroyed. 40627_ Penetrated by Slug. 40627_ Executioner triggered Stasis Trap. 40627_ A bubble of rippling energy engulfs the area. 40627_ Field strength at 75. 40628_ Stasis Trap reprogrammed. 40628_ EXIT=IDENTIFIED: SURFACE 40628_ Executioner triggered Stasis Trap. 40628_ A bubble of rippling energy engulfs the area. 40628_ Field strength at 75. 40628_ Field strength at 50. Map ----- +----------------------------------------------------+ | ???# #????# = # ""R / #??? ?????????? | | #### #??### # """" = #??? #?????????? | | #??? " # #?? #?????????? | | #????# + #?? #?????????? | | ######!! ####+####+####?? #?????????? | | ##"""=%[ % #??# #??# #???## ##????????? | | ???# !%*[ ####%#### ##### #????????? | | ???# ###### % *%= #????????? | | ???# + % " % ! #????????? | | ???# # " ###+#"#""###### #????????? | | ???# # ######### # #######????????? | | ???# # !! # " + #??????????????? | | ???# # !! # !"## #??????????????? | | ???# # ! # %=##" #??????????????? | | ???# # # [### " T #??????????????? | | ???# # ]# #?# #??????????????? | | ???# # """+##"##?# #????????????+ | | ???# ####"" #%!###??##############?????????????## | | ???# ###" ###"#"#??????????????????????????????# | | ???# " [ #?##############???????????????# | | ???# # #?# #???????????????# | | ???# # #?# #???????????????# | | ???# # #?# ##??????????????# | | ???# # #?# ;#??????????????# | | ???# ! # #?# #???????????????# | | ???# + #?# @" #???????????????# | | ???#+####### " #?# "" #???????????????# | | ?? ????# "%"#?# % #???????????????## | | ?# ??# " #?# #????????????????? | | ?# []] ## % #?# ^ #????????????????? | | ?# []] ## % #?# % #????????????????? | | ?# [] ###%"%##?# #????????????????? | | ?# #??#"%#??####^ BB####????????????????? | | ?# #?##% ##???# BB #??????????????????? | | ?##########?# "%"##??## ^##??????????????????? | | ???????##??##"" " #??# ^ E #??????????????????? | | ???????# #?#" %" #### K E##??????????????????? | | ????????# ##"= " ##" % #??????????????????? | | ?????????#""!%] " #?# ##??????????????????? | | ?????????##!!!!!%#??# #??????????????????? | | ?????????#"%!%==##??# ^##??????????????????? | | ???????###%!!!%*"#??## #???????????????????? | | ???????# " =!!!###??# ##???????????????????? | | ???????## " =*[%!###" % #????????????????????? | | ???????# " %%!![[ # #####???????????????? | | ???????# #" !%" " #???????????????? | | ??????# ## ! # %%%% " #???????????????? | | ??????# ##" % # ! # #???????????????? | | ????######" # # #???????????????? | | ????+ % # ###### #????##########?? | +----------------------------------------------------+ Best States ------------- Heat Dissipation 87 Coolant Potential 65 Energy Generation 41 Energy Capacity 910 Matter Stores 300 Matter Capacity 600 Sight Range 23 Robot Scan Range 20 Terrain Scan Range 20 Terrain Scan Density 10 ECM Strength 1 Jamming Range 16 Cloak Strength 4 Additional Mass Support 16 Armor Coverage 600 Point Defense Rating 240 Weapon Cycling 25 Melee Speed Boost 30 Phase Shifting 15 Evasion (%) 79 Targeting Accuracy 12 Melee Accuracy 12 Core Analysis 8 Recoil Reduction 4 Salvage Targeting 1 Offensive Hacking 37 Defensive Hacking 26 Relay Coupler Types 2 Relay Coupler Value 42 Authchip Count 1 Trap Extractor Capacity 6 Item Schematics ----------------- Neutron Missile Launcher | -2/Section 7 | Archive Enh. Force Rifle | -2/Section 7 | Archive Robot Schematics ------------------ None Fabricated ------------ B-36 Bruiser | x3 | -7/Factory | Preloaded Imp. VTOL Module | x1 | -7/Factory | Authchip K-01 Serf | x4 | -6/Factory | Preloaded Field Propulsion Drive | x2 | -4/Factory Hcp. Storage Unit | x1 | -4/Armory Repaired ---------- Minigun | 41% | -9/Materials Hvy. Ion Engine | 23% | -9/Materials Hrd. Light Armor Plating | 43% | -9/Materials Exp. Sensor Array | 62% | -9/Materials | Broken Adv. Weapon Cycler | 4% | -8/Materials Adv. Myomer Leg | 64% | -8/Materials Lgt. Treads | 15% | -8/Materials Rocket Launcher | 24% | -8/Materials Exp. Sensor Array | 99% | -8/Materials | Broken Adv. Weapon Cycler | 99% | -8/Materials | Broken Rnf. Fission Core | 42% | -8/Materials Imp. Light Armor Plating | 92% | -6/Factory Studied --------- None Alien Tech Used ----------------- Core Expander Integrated Mediator Core Regenerator Transdimensional Reconstructor Core Reset Matrix Terrabomb Sigix Terminator Achievements -------------- None Challenges ------------ None Game ------ Seed HardenedAntimissileExtractor Manual? 0 Play Time 08:54:34 Cumulative 1313.6 hours Start 2026.01.31 @ 13:08:29 End 2026.02.01 @ 03:25:39 Sessions 3 Manual Loads 0 Difficulty Rogue Special Mode None Game No. 445 Rogue 440 Adventurer 4 Explorer 1 Win Type 2 Total 31 Types 15/5/2/2/0/1/2/0/2/2 Lore% 97 Gallery% 96 Achievement% 84 Wizard Run 0 Options --------- Layout 0 ASCII 0 Keyboard 0 Movement Numpad Keybinds 0 Fullscreen 2 Font 18/SmallcapsGlow Map View 76x50 Zoom Use 0% Tactical HUD 1 Map Filters NONE Filters NONE Steam 1 RUN: f2126226-2ad4-43de-b6b9-cae6b8974012